{"text_format":"1","workbook":"xlsx","n_sheets":11,"sheets":["Instructions","TC-00 Symbols","TC-01 Symbols","TC-02 Symbols","HW Hx Cntrl Basic","HW Hx Cntrl Enhanced ","FTR Cntrl Basic","FTR Cntrl Enhanced","Bldg Occ-UnOcc","HW Pump SS","Building Information"],"not_rendered":{"charts":0,"images":57,"macros":1,"external_links":1,"defined_names":3,"comments":0,"pivot_tables":0},"unopened":[],"bounds":{"document_bytes":16777216,"sheet_cells":100000,"rows_first":2000,"rows_last":500,"rows_between":2000,"halvings":0,"cell_chars":16384,"cell_head_chars":4096},"cells_cut":0,"cells_raw":0,"read":"whole","date_system":"1900"}

{"sheet":"Instructions","index":0,"n_rows":128,"n_cols":4,"rows_kept":128,"cut":false,"hidden":false,"merged":[[126,0,126,13],[127,0,127,13],[70,1,70,13],[71,1,71,13],[72,1,72,13],[73,1,73,13],[74,1,74,13],[124,2,125,13],[75,0,125,0],[110,2,111,13],[112,2,114,13],[116,2,117,13],[118,2,119,13],[75,1,75,13],[121,2,122,13],[120,2,120,13],[11,1,11,13],[15,1,15,13],[12,1,12,13],[13,1,13,13],[14,1,14,13],[123,2,123,13],[115,2,115,13],[108,2,109,13],[4,3,4,6],[5,3,5,6],[6,3,6,6],[7,3,7,6],[8,0,8,14],[76,2,76,13],[77,2,77,13],[78,2,78,13],[79,2,79,13],[16,0,44,0],[81,2,81,13],[82,2,82,13],[83,2,83,13],[45,0,74,0],[98,2,98,13],[106,2,107,13],[100,2,100,13],[101,2,101,13],[102,2,102,13],[103,2,103,13],[94,2,94,13],[95,2,95,13],[96,2,96,13],[99,2,99,13],[104,2,105,13],[44,1,44,13],[10,1,10,13],[16,1,16,13],[45,1,45,13],[97,2,97,13],[86,2,86,13],[87,2,87,13],[88,2,88,13],[89,2,89,13],[90,2,90,13],[91,2,91,13],[80,2,80,13],[84,2,84,13],[85,2,85,13],[92,2,92,13],[93,2,93,13]]}
[]
["Facility Dynamics Headquarters  - 6760 Alexander Bell Drive,  Suite 200,  Columbia, MD 21046, Phone: (410) 290-0900;  www.facilitydynamics.com"]
["Facility Dynamics NW Satellite Location  - 8560 North Buchanan Avenue,  Portland, Oregon 97203, Phone: ;  www.facilitydynamics.com"]
["Engineering Calculation"]
["Date:",null,null,{"$f":"NOW()","v":"2019-09-09T16:22:55.460"}]
["Project Name: ",null,null,"Logic Diagram Example"]
["Project Number: ",null,null,"09202000"]
["Engineer: ",null,null,"David Sellers"]
["Notice:\n\nFacility Dynamics Engineering has provided this spreadsheet to support training classes and personal development.   We are happy to have you use it to learn about building systems and related concepts and calculations   But you are using it at your own risk and neither FDE nor I can be responsible for the results you generate with it and the decisions you make as a result.  Please check your work and use your head.\n\nIn addition, we consider the spreadsheet to be original work and intellectual property.  In other words, we own the spreadsheet and it is copyrighted in our name. Having said that, it is important to us to strike an appropriate balance between a desire to support the industry and pass on knowledge that has been handed down to us by our mentors and people like Isaac Newton and Willis Carrier for example, while protecting our intellectual property rights. So thank you in advance for being conscious of that as you apply this spreadsheet.\n\nBy opening and working with this file, you are acknowledging that you have read and understand this copyright notice and will comply with its requirements including our list of permissions.  To view our permissions, please visit http://www.av8rdas.com/copyright-and-permissions.html."]
["Overview and General Instructions"]
[1,"This spreadsheet contains a set of logic diagram symbols that can be used to develop control logic diagrams as a way of communicating operating sequence information to contractors, a design team, an operating team, etc.   There is no industry standard for the symbols and the foundation of this symbol set is the symbol set that FDE uses for their work.   The symbol set used by Eikon (Automated Logic Controls' programming language) is somewhat similar."]
[null,"\nTraditionally, FDE produces their logic diagrams using AutoCAD and our symbol library exists in that format.  But I have come to realize that when we are teaching logic diagrams and trying to have students develop their own, one of the obstacles to success is having a symbol library and drawing tool available to use.   These days, students that are practicing engineers frequently have access to and familiarity with AutoCAD so for those students, simply providing our library in its AutoCAD format was a reasonable solution.  But for some of the classes we are involved with, there are technical folks performing technical functions, commissioning and operations in particular, who understand and want to communicate logic but, because of their background, are not \"fluent\" in AutoCAD and/or do not have access to it.\n\n\n\n"]
[null,"Initially, we addressed the issue by having the students use a pencil and paper to simply draw their own symbols for classroom exercises.   Of course, that made the process time consuming in terms of creating and duplicating symbols and after class, the students were still confronted with the need to develop a symbol library in a tool that they were comfortable using to draw electronically.  "]
[null,"In an effort to address that challenge, in some venues, we started using free software packages like Eikon for Educators (Automated Logic Controls' programming language) or WindLGC (IDEC's programming language for their \"smart relays\") as a tool for interactively developing logic diagrams.  Both of these tools have the added benefit of allowing you to simulate your logic and verify that the \"dominos\" all fall in the right order (they can't simulate building/process dynamics).   But some might consider the diagrams produced to be proprietary in nature and thus, not particularly useful for construction documents.  And we also found that we were spending a lot of time teaching \"how to use Eikon\" or \"how to use WindLGC\" rather than \"how to develop logic diagrams\"."]
[null,"As a result, we decided to try to create a tool that used a fairly common, readily available drawing application.  Since the MS Office suite includes a substantial library of basic shapes and the objects created can be copied and pasted across all of the MS Object products,  and since many people running Apple's IOS have a Windows shell available, and since the objects created in MS office can be copied and pasted as bit maps into other applications, we chose MS Office as our drawing application.  Personally, I find it easiest to develop MS drawing objects in PowerPoint and since I had a slide set with many of our symbols already developed in it, I built from that starting point and developed the symbol library in PowerPoint."]
[null,"Subsequently, I discovered that you could set row and column heights in terms of inches instead of points in Excel if you made the adjustment in the \"Page Layout\" view.   That capability, along with the ability to quickly format the boarders on cells meant that it was fairly easy to make electronic \"graph paper\" in Excel.   In turn, that lead to the development of the tool you are currently looking at."]
[null,"The symbol set contains most of the common control functions used for building control systems.  Generally, the symbols are identical to the FDE AutoCAD symbols.  But in some cases, I have added some enhancements for teaching purposes or to accommodate some personal preferences that I have.  More complex functions can usually be built by combining multiple symbols.   For example, if you needed a High Selector for 7 inputs rather than 4, you could combine a number of 4 input selectors (Option 1 below).   Or, you could create and define a new symbol in your symbol list that was exactly what you needed, as illustrated by Option 2."]
[]
[]
[]
[]
[]
[]
[]
[]
[]
[]
[]
[]
[]
[]
[]
[]
[]
[]
[]
[]
[]
[]
[]
[]
[]
[]
[]
[null,"Option 2 can be expedient if you find yourself using the same combination of logic blocks to represent a function frequently.  What really matters is that if you create a new logic block, you be sure to define it in your symbol list including what each input and output represents and how it works."]
[2,"The spreadsheet has been set up to use the column and row features of Excel to create electronic graph paper.   The grid is set for 0.30 inches square.   If you wanted to adjust it and the symbols to some other dimension,  you can set row with and column height to units other than points by using the \"Page View\" setting on the \"View\" tab, selecting the rows and columns you want to adjust, and entering the desired dimension and related units."]
[]
[]
[]
[]
[]
[]
[]
[]
[]
[]
[]
[]
[]
[]
[]
[]
[]
[]
[]
[]
[]
[]
[]
[]
[null,"Related to the grid setting, for reasons I have yet to understand, even thought the symbols were drawn on a 0.3 inch grid and the columns and rows are set to that in the spreadsheet, sometimes, Excel \"elects\" to change things slight.  For instance, the grid will reset to 0.29 inches or when you paste an object in, it will not be quite an even multiple of the grid size.   "]
[null,"For the time being, the way I work around that is to use the arrow keys to position the symbol so it is on the grid after I paste it in.  Usually I use one arrow key click up and one arrow key click left, which will put the top left corner of the symbol on the grid.  Then I \"grab\" the grip (the little black square that shows up when you mouse over a symbol) on lower right corner of other symbol and push or pull it to the nearest grid intersection.   While that changes the aspect ratio of the various elements slightly (for instance, squares will no longer be true squares), for a small change, it is not detectable to the eye, at least to my eye.     But having things snapped to the grid makes it a lot easier to organize the drawing and interconnect the elements."]
[null,"The connectors typically snap to the center of the geometric shapes, not the corners.   The supporting PowerPoint that describes the symbols in detail discusses how this works if you are not familiar with this MS Office drawing object behavior.   This is actually a very useful feature because if you make sure your connectors are snapped to the objects they are connecting, then you can move objects around to re-organize your drawing and will not have to re-establish the connections."]
[null,"As I said, the supporting PowerPoint slides cover this in more detail.  The reason I mention this here is that using the procedure I describe above to slightly resize the symbols can sometimes result in the  grips for symbols that have a number of squares stacked vertically or horizontally to no longer be directly on a grid line.  So when you draw the connector, it may not be perfectly straight.   "]
[null,"How much this matters probably depends on how \"anal\" you are unless the connector is really long.    But if it bothers you, you can either turn off the \"snap to grid\" setting and manually position things.   Or, you can grab the grips on the individual elements and push or pull them so they are on a grid point, which is what I do.   Once you have done it to a symbol, it seems to hold if you copy and paste that symbol on a specific worksheet."]
[3,"The illustration and text that follows describe some of the characteristics and features of the tool."]
[]
[]
[]
[]
[]
[]
[]
[]
[]
[]
[]
[]
[]
[]
[]
[]
[]
[]
[]
[]
[]
[]
[]
[]
[]
[]
[]
[]
[null,1,"The symbols were originally drawn in PowerPoint for a presentation about logic diagrams and are laid out on a 0.3 inch grid.  The size was set by my experience in minimum font sizes for projecting in a training setting.   Rather than re-draw the, I simply used them at that scale and set the grid size in the spreadsheet accordingly.   On the one hand, that means you can fit less logic on a given sheet than you would be able to fit if they were smaller.  But on the other hand, if you wanted to print your drawing set to 11 x 17 so it was more portable out in the field, the larger symbols and text will still be legible, at least to me."]
[]
[null,2,"The sheet size is set for 24\"h x 36\"w.  This is not a standard Excel output size but you can use the \"Add Page Size\" feature in Acrobat to set up a sheet of that size in Acrobat and then print to .pdf that way.   In addition, this sheet size and the larger symbols generally will print satisfactorily if you scale it to fit on an 11 x 17 sheet size, which is a standard size for many printers and for Acrobat."]
[]
[null,3,"The title block uses somewhat silly place holders for things like the drawing seal, the name of the project, the name of the architectural firm and engineering firm, the production team, etc.  All of those items can be edited to match your project and the logo can be changed to match your logo."]
[]
[null,4,"The symbols were originally drawn based on using a black background because that seems to project better in a presentation.   But if you are printing the sheets out, it will use a lot of blank ink/toner and that may not be desirable.  Or you simply may prefer to have a white background.   To accommodate those preferences, two of the green control buttons at the bottom left side of the sheet can be used to toggle between a black background and a white background.   \n\nThe buttons simply run a macro that changes the color pallet from one named \"FDE Primary\" to \"FDE Primary White\" and back.   The colors are simply my preferences;  I like primary colors and I like using colors to help distinguish things like analog vs. digital (amber vs. blue) for instance.  But, you could edit the color pallets to create background colors and line and fill colors that matched your preferences and/or company standards.  "]
[]
[null,5,"I personally believe that if you draw things like logic diagrams and system diagrams on a grid so that things tend to line up and have an orderly arrangement, then the drawing looks more presentable and is easier to read.  So, I turn on Excel's \"Snap to Grid\" feature when I develop the system diagram, and the spreadsheet will likely be defaulted to that when you open it.  But you can always turn it off."]
[]
[]
[null,null,"Related to this, I also find it handy to have a visual display of the grid available when I am drawing (basically, I like to have my electronic drawing sheet look like graph paper).   But when I print, I may want to print with out the \"graph paper\" look, either to meet a client's preference or so that the sheet looks less \"busy\".   So, I have two green control buttons set up to turn the grid display on and off.  All the Marco does is select the entire spreadsheet and then add or remove boarders from the cells, meaning you could do it manually that way.   Note that the color pallet affects the way the grid will look since the border colors come from the color pallet."]
[null,6,"For symbols to be effective, it is important that the people reading them fully understand what they mean.  Since I originally created the symbols I use in this tool in PowerPoint for a training class and the slides included all of the details about what the various inputs, outputs, and constants meant, I decided to simply use the basic symbol description (for instance \"PID Loop\" or \"Analog Input\") in my symbol list in this tool and then provide a link that would open the appropriate PowerPoint slide to provide the details.  So, if you click the symbol name, that is what should happen as long as you have downloaded the PowerPoint show in addition to the Excel tool and placed it on your hard drive."]
[]
[null,7,"Related to the preceding, the links I have created are relative links.  So, if you have placed the PowerPoint show file with the symbol definitions in it in the same folder as the spreadsheet tool, they should work with out any additional effort on your part.   However, if you made edits to the PowerPoint file to define a symbol you have created and wanted to rename it or wanted to keep it in a different location, then that will break the links."]
[]
[null,null,"To address that issue, I included cells where you can enter the location and file name for the PowerPoint show file that defines the symbols.   If you enter the appropriate information in those two cells, then the hyperlinks are set up to \"read\" that information and update accordingly.   This is a new feature and I have not tested it a lot, so if you have problems with it, you may have to directly edit each of the links.  But so far, in the limited testing that I have done, it seems to work."]
[null,8,"Each tab of the tool is set up to represent one sheet of a drawing set.  Currently, the first three sheets are dedicated to the symbols list and drawing list.   The drawing list has been set up so you can hyperlink to the appropriate tabs as associated with the different sheets in the drawing set.   The sheets after the first sheet include a fifth, green, control button that allows you to jump back to the first sheet and then use the drawing list to jump to a different sheet.  The current tool includes a blank sheet and sheets with a number of examples of the different logic diagrams that are essentially the \"answers\" for some of the exercises we do in some of our training classes."]
[]
[null,null,"If you keep the \"Blank\" sheet blank, you can make additional sheets by clicking on the word \"Blank\" on the tab, right clicking, and then selecting the \"Move or Copy …\" function and then selecting the location where you want the new sheet.  Be sure to click the \"Copy\" check box that is in the dialog box, otherwise you will just move the \"Blank\" tab instead of copying it.   Excel will automatically assign a new name to the new tab in the form of <Blank#> where # represents how many copies you have made of the tab (i.e., the first copy will be \"Blank 2\", the second \"Blank 3\", etc.).   But if you double click on the tab name, you can edit it to what ever you want to name it."]
[null,9,"Note that the symbol list includes a lopsided \"Z\" shaped line in addition to a straight line for each connection type.  The \"Z\" shape is actually a special MS Office shape.  It is a single shape with three connected lines in it.   Once you place it, you can drag the end points at each end of the \"Z\" to the start and end locations you want and drag a point in the middle of the vertical line to shift the position of it horizontally.   The shape makes it much faster to connect to points that are offset from each other relative to the time it takes to do it by drawing three lines."]
[]
[]
["© 2017 Facility Dynamics Engineering - All Rights Reserved"]

{"sheet":"TC-00 Symbols","index":1,"n_rows":75,"n_cols":119,"rows_kept":75,"cut":false,"hidden":false,"merged":[[74,30,74,43],[37,28,40,33],[53,28,56,33],[39,52,42,57],[74,44,74,77],[51,73,54,78],[45,73,48,78],[39,73,42,78],[45,52,48,57],[51,52,54,57],[57,64,60,69],[73,30,73,43],[73,44,73,67],[62,80,63,86],[60,80,61,86],[46,88,49,111],[62,88,63,111],[50,88,51,111],[52,88,53,111],[54,88,55,111],[56,88,57,111],[56,80,57,86],[58,80,59,86],[54,80,55,86],[46,80,49,86],[52,80,53,86],[50,80,51,86],[66,115,67,120],[64,80,65,86],[64,88,65,111],[58,88,59,111],[4,4,5,35],[39,115,39,120],[64,115,65,120],[61,115,63,120],[1,115,26,116],[1,117,26,117],[60,88,61,111],[1,118,26,120],[43,115,43,116],[43,117,43,120],[28,115,31,120],[32,115,36,120],[38,115,38,120],[42,115,42,120],[34,80,37,86],[34,88,37,111],[38,88,41,111],[42,88,45,111],[41,115,41,120],[40,115,40,120],[37,115,37,120],[38,80,41,86],[42,80,45,86],[9,28,12,33],[21,28,24,33],[35,41,36,50],[12,80,13,86],[12,88,13,111],[14,80,15,86],[14,88,15,111],[16,80,17,86],[16,88,17,111],[8,80,9,86],[8,88,9,111],[10,80,11,86],[10,88,11,111],[4,80,5,111],[26,66,29,73],[18,88,21,111],[30,88,33,111],[30,80,33,86],[18,80,21,86],[22,80,25,86],[22,88,25,111],[4,42,5,73],[12,66,15,71],[20,66,23,71],[33,66,36,71],[26,88,29,111],[26,80,29,86],[6,80,7,86],[6,88,7,111]]}
[]
[null,null,null,null,null,null,null,null,null,null,null,null,null,null,null,null,null,null,null,null,null,null,null,null,null,null,null,null,null,null,null,null,null,null,null,null,null,null,null,null,null,null,null,null,null,null,null,null,null,null,null,null,null,null,null,null,null,null,null,null,null,null,null,null,null,null,null,null,null,null,null,null,null,null,null,null,null,null,null,null,null,null,null,null,null,null,null,null,null,null,null,null,null,null,null,null,null,null,null,null,null,null,null,null,null,null,null,null,null,null,null,null,null,null,null,"Morgan, Wright, Jungermann and Kelley",null,"Architects, Master Planners","2700 Gumby Place | Suite 1872 | San Deigo, CA 92101\n619.608.1887"]
[]
[]
[null,null,null,null,"Input, Output, Vitrual Points, and Constants",null,null,null,null,null,null,null,null,null,null,null,null,null,null,null,null,null,null,null,null,null,null,null,null,null,null,null,null,null,null,null,null,null,null,null,null,null,"Connectors and Reference Flags",null,null,null,null,null,null,null,null,null,null,null,null,null,null,null,null,null,null,null,null,null,null,null,null,null,null,null,null,null,null,null,null,null,null,null,null,null,"Drawing List"]
[]
[null,null,null,null,null,null,null,null,null,null,null,null,null,null,null,null,null,null,null,null,null,null,null,null,null,null,null,null,null,null,null,null,null,null,null,null,null,null,null,null,null,null,null,null,null,null,null,null,null,null,null,null,null,null,null,null,null,null,null,null,null,null,null,null,null,null,null,null,null,null,null,null,null,null,null,null,null,null,null,null,"Sheet Number",null,null,null,null,null,null,null,"Description"]
[]
[null,null,null,null,null,null,null,null,null,null,null,null,null,null,null,null,null,null,null,null,null,null,null,null,null,null,null,null,null,null,null,null,null,null,null,null,null,null,null,null,null,null,null,null,null,null,null,null,null,null,null,null,null,null,null,null,null,null,null,null,null,null,null,null,null,null,null,null,null,null,null,null,null,null,null,null,null,null,null,null,"TC-00",null,null,null,null,null,null,null,"Symbols and Abbreviations, Drawing List"]
[null,null,null,null,null,null,null,null,null,null,null,null,null,null,null,null,null,null,null,null,null,null,null,null,null,null,null,null,{"$f":"HYPERLINK(TEXT($AS$74,\"\")&\"\\\"&TEXT($AS$75,\"\")&\"#8\",\"Input Point Logic Block\")","v":"Input Point Logic Block"}]
[null,null,null,null,null,null,null,null,null,null,null,null,null,null,null,null,null,null,null,null,null,null,null,null,null,null,null,null,null,null,null,null,null,null,null,null,null,null,null,null,null,null,null,null,null,null,null,null,null,null,null,null,null,null,null,null,null,null,null,null,null,null,null,null,null,null,null,null,null,null,null,null,null,null,null,null,null,null,null,null,"TC-01",null,null,null,null,null,null,null,"Symbols and Abbreviations (continued)"]
[null,null,null,null,null,null,null,null,null,null,null,null,null,null,null,null,null,null,null,null,null,null,null,null,null,null,null,null,null,null,null,null,null,null,null,null,null,null,null,null,null,null,null,null,null,null,null,null,null,null,null,null,null,null,null,null,null,null,null,null,null,null,null,null,null,null,null,null,null,null,null,null,null,null,null,null,null,null,null,null,"TC-01",null,null,null,null,null,null,null,"Symbols and Abbreviations (continued)"]
[null,null,null,null,null,null,null,null,null,null,null,null,null,null,null,null,null,null,null,null,null,null,null,null,null,null,null,null,null,null,null,null,null,null,null,null,null,null,null,null,null,null,null,null,null,null,null,null,null,null,null,null,null,null,null,null,null,null,null,null,null,null,null,null,null,null,{"$f":"HYPERLINK(TEXT($AS$74,\"\")&\"\\\"&TEXT($AS$75,\"\")&\"#14\",\"Connectors (Virtual Wires)\")","v":"Connectors (Virtual Wires)"},null,null,null,null,null,null,null,null,null,null,null,null,null,"TC-02",null,null,null,null,null,null,null,"Symbols and Abbreviations (continued)"]
[null,null,null,null,null,null,null,null,null,null,null,null,null,null,null,null,null,null,null,null,null,null,null,null,null,null,null,null,null,null,null,null,null,null,null,null,null,null,null,null,null,null,null,null,null,null,null,null,null,null,null,null,null,null,null,null,null,null,null,null,null,null,null,null,null,null,null,null,null,null,null,null,null,null,null,null,null,null,null,null,null,null,null,null,null,null,null,null,"Symbols and Abbreviations (continued)"]
[null,null,null,null,null,null,null,null,null,null,null,null,null,null,null,null,null,null,null,null,null,null,null,null,null,null,null,null,null,null,null,null,null,null,null,null,null,null,null,null,null,null,null,null,null,null,null,null,null,null,null,null,null,null,null,null,null,null,null,null,null,null,null,null,null,null,null,null,null,null,null,null,null,null,null,null,null,null,null,null,"TC-01",null,null,null,null,null,null,null,"Blank sheet to start your own drawing"]
[null,null,null,null,null,null,null,null,null,null,null,null,null,null,null,null,null,null,null,null,null,null,null,null,null,null,null,null,null,null,null,null,null,null,null,null,null,null,null,null,null,null,null,null,null,null,null,null,null,null,null,null,null,null,null,null,null,null,null,null,null,null,null,null,null,null,null,null,null,null,null,null,null,null,null,null,null,null,null,null,null,null,null,null,null,null,null,null,"Symbols and Abbreviations (continued)"]
[null,null,null,null,null,null,null,null,null,null,null,null,null,null,null,null,null,null,null,null,null,null,null,null,null,null,null,null,null,null,null,null,null,null,null,null,null,null,null,null,null,null,null,null,null,null,null,null,null,null,null,null,null,null,null,null,null,null,null,null,null,null,null,null,null,null,null,null,null,null,null,null,null,null,null,null,null,null,null,null,"TC-01",null,null,null,null,null,null,null,"Hi Signal Selector Example"]
[null,null,null,null,null,null,null,null,null,null,null,null,null,null,null,null,null,null,null,null,null,null,null,null,null,null,null,null,null,null,null,null,null,null,null,null,null,null,null,null,null,null,null,null,null,null,null,null,null,null,null,null,null,null,null,null,null,null,null,null,null,null,null,null,null,null,null,null,null,null,null,null,null,null,null,null,null,null,null,null,null,null,null,null,null,null,null,null,"Symbols and Abbreviations (continued)"]
[null,null,null,null,null,null,null,null,null,null,null,null,null,null,null,null,null,null,null,null,null,null,null,null,null,null,null,null,null,null,null,null,null,null,null,null,null,null,null,null,null,null,null,null,null,null,null,null,null,null,null,null,null,null,null,null,null,null,null,null,null,null,null,null,null,null,null,null,null,null,null,null,null,null,null,null,null,null,null,null,"TC-01",null,null,null,null,null,null,null,"Bureaucratic Affairs Building HHW Hx Control Example - Basic Heat Exchanger Control"]
[null,null,null,null,null,null,null,null,null,null,null,null,null,null,null,null,null,null,null,null,null,null,null,null,null,null,null,null,null,null,null,null,null,null,null,null,null,null,null,null,null,null,null,null,null,null,null,null,null,null,null,null,null,null,null,null,null,null,null,null,null,null,null,null,null,null,null,null,null,null,null,null,null,null,null,null,null,null,null,null,null,null,null,null,null,null,null,null,"Symbols and Abbreviations (continued)"]
[null,null,null,null,null,null,null,null,null,null,null,null,null,null,null,null,null,null,null,null,null,null,null,null,null,null,null,null,null,null,null,null,null,null,null,null,null,null,null,null,null,null,null,null,null,null,null,null,null,null,null,null,null,null,null,null,null,null,null,null,null,null,null,null,null,null,{"$f":"HYPERLINK(TEXT($AS$74,\"\")&\"\\\"&TEXT($AS$75,\"\")&\"#17\",\"Reference Flags - Origin\")","v":"Reference Flags - Origin"}]
[null,null,null,null,null,null,null,null,null,null,null,null,null,null,null,null,null,null,null,null,null,null,null,null,null,null,null,null,{"$f":"HYPERLINK(TEXT($AS$74,\"\")&\"\\\"&TEXT($AS$75,\"\")&\"#9\",\"Output Point Logic Block\")","v":"Output Point Logic Block"}]
[null,null,null,null,null,null,null,null,null,null,null,null,null,null,null,null,null,null,null,null,null,null,null,null,null,null,null,null,null,null,null,null,null,null,null,null,null,null,null,null,null,null,null,null,null,null,null,null,null,null,null,null,null,null,null,null,null,null,null,null,null,null,null,null,null,null,null,null,null,null,null,null,null,null,null,null,null,null,null,null,"TC-01",null,null,null,null,null,null,null,"Bureaucratic Affairs Building HHW Hx Control Example - Enhanced features to improve performance and utility and save energy"]
[null,null,null,null,null,null,null,null,null,null,null,null,null,null,null,null,null,null,null,null,null,null,null,null,null,null,null,null,null,null,null,null,null,null,null,null,null,null,null,null,null,null,null,null,null,null,null,null,null,null,null,null,null,null,null,null,null,null,null,null,null,null,null,null,null,null,null,null,null,null,null,null,null,null,null,null,null,null,null,null,null,null,null,null,null,null,null,null,"Symbols and Abbreviations (continued)"]
[]
[]
[null,null,null,null,null,null,null,null,null,null,null,null,null,null,null,null,null,null,null,null,null,null,null,null,null,null,null,null,null,null,null,null,null,null,null,null,null,null,null,null,null,null,null,null,null,null,null,null,null,null,null,null,null,null,null,null,null,null,null,null,null,null,null,null,null,null,{"$f":"HYPERLINK(TEXT($AS$74,\"\")&\"\\\"&TEXT($AS$75,\"\")&\"#17\",\"Reference Flags - From Indicated Sheet\")","v":"Reference Flags - From Indicated Sheet"},null,null,null,null,null,null,null,null,null,null,null,null,null,"TC-02",null,null,null,null,null,null,null,"Bureacratic Affairs Building Occupancy Control Logic Example"]
[]
[null,null,null,null,null,null,null,null,null,null,null,null,null,null,null,null,null,null,null,null,null,null,null,null,null,null,null,null,null,null,null,null,null,null,null,null,null,null,null,null,null,null,null,null,null,null,null,null,null,null,null,null,null,null,null,null,null,null,null,null,null,null,null,null,null,null,null,null,null,null,null,null,null,null,null,null,null,null,null,null,null,null,null,null,null,null,null,null,null,null,null,null,null,null,null,null,null,null,null,null,null,null,null,null,null,null,null,null,null,null,null,null,null,null,null,"Hijend Hospitality Interntational"]
[]
[null,null,null,null,null,null,null,null,null,null,null,null,null,null,null,null,null,null,null,null,null,null,null,null,null,null,null,null,null,null,null,null,null,null,null,null,null,null,null,null,null,null,null,null,null,null,null,null,null,null,null,null,null,null,null,null,null,null,null,null,null,null,null,null,null,null,null,null,null,null,null,null,null,null,null,null,null,null,null,null,"TC-03",null,null,null,null,null,null,null,"Bureacratic Affairs Building Finned Tube Radiation Zone Control Example"]
[]
[null,null,null,null,null,null,null,null,null,null,null,null,null,null,null,null,null,null,null,null,null,null,null,null,null,null,null,null,null,null,null,null,null,null,null,null,null,null,null,null,null,null,null,null,null,null,null,null,null,null,null,null,null,null,null,null,null,null,null,null,null,null,null,null,null,null,null,null,null,null,null,null,null,null,null,null,null,null,null,null,null,null,null,null,null,null,null,null,null,null,null,null,null,null,null,null,null,null,null,null,null,null,null,null,null,null,null,null,null,null,null,null,null,null,null,"San Diego Bayview Marquis Hotel and Marina"]
[null,null,null,null,null,null,null,null,null,null,null,null,null,null,null,null,null,null,null,null,null,null,null,null,null,null,null,null,null,null,null,null,null,null,null,null,null,null,null,null,null,null,null,null,null,null,null,null,null,null,null,null,null,null,null,null,null,null,null,null,null,null,null,null,null,null,{"$f":"HYPERLINK(TEXT($AS$74,\"\")&\"\\\"&TEXT($AS$75,\"\")&\"#19\",\"Power Return Flag\")","v":"Power Return Flag"}]
[null,null,null,null,null,null,null,null,null,null,null,null,null,null,null,null,null,null,null,null,null,null,null,null,null,null,null,null,null,null,null,null,null,null,null,null,null,null,null,null,null,null,null,null,null,null,null,null,null,null,null,null,null,null,null,null,null,null,null,null,null,null,null,null,null,null,null,null,null,null,null,null,null,null,null,null,null,null,null,null,"TC-04 and TC-05",null,null,null,null,null,null,null,"Bureacratic Affairs Building Hot Water Pump Control Example"]
[null,null,null,null,null,null,null,null,null,null,null,null,null,null,null,null,null,null,null,null,null,null,null,null,null,null,null,null,null,null,null,null,null,null,null,null,null,null,null,null,null,"Logic Functions"]
[]
[null,null,null,null,null,null,null,null,null,null,null,null,null,null,null,null,null,null,null,null,null,null,null,null,null,null,null,null,{"$f":"HYPERLINK(TEXT($AS$74,\"\")&\"\\\"&TEXT($AS$75,\"\")&\"#11\",\"Virtual Point Logic Block\")","v":"Virtual Point Logic Block"},null,null,null,null,null,null,null,null,null,null,null,null,null,null,null,null,null,null,null,null,null,null,null,null,null,null,null,null,null,null,null,null,null,null,null,null,null,null,null,null,null,null,null,null,null,null,null,null,null,null,null,null,null,null,null,null,null,null,null,null,null,null,null,null,null,null,null,null,null,null,null,null,null,null,null,null,null,null,null,null,null,null,null,null,null,null,"Issued for Bid:"]
[null,null,null,null,null,null,null,null,null,null,null,null,null,null,null,null,null,null,null,null,null,null,null,null,null,null,null,null,null,null,null,null,null,null,null,null,null,null,null,null,null,null,null,null,null,null,null,null,null,null,null,null,null,null,null,null,null,null,null,null,null,null,null,null,null,null,null,null,null,null,null,null,null,null,null,null,null,null,null,null,"TC-01",null,null,null,null,null,null,null,"University of Wisconsin DDC Class Mixed Air Section Control Exercise Solution",null,null,null,null,null,null,null,null,null,null,null,null,null,null,null,null,null,null,null,null,null,null,null,null,null,null,"2002-09-20"]
[null,null,null,null,null,null,null,null,null,null,null,null,null,null,null,null,null,null,null,null,null,null,null,null,null,null,null,null,null,null,null,null,null,null,null,null,null,null,null,null,null,null,null,null,null,null,null,null,null,null,null,null,{"$f":"HYPERLINK(TEXT($AS$74,\"\")&\"\\\"&TEXT($AS$75,\"\")&\"#20\",\"And Logic Block\")","v":"And Logic Block"},null,null,null,null,null,null,null,null,null,null,null,null,null,null,null,null,null,null,null,null,{"$f":"HYPERLINK(TEXT($AS$74,\"\")&\"\\\"&TEXT($AS$75,\"\")&\"#24\",\"Nand (Not And) Logic Block\")","v":"Nand (Not And) Logic Block"},null,null,null,null,null,null,null,null,null,null,null,null,null,null,null,null,null,null,null,null,null,null,null,null,null,null,null,null,null,null,null,null,null,null,null,null,null,null,null,null,null,"Drawn By:"]
[null,null,null,null,null,null,null,null,null,null,null,null,null,null,null,null,null,null,null,null,null,null,null,null,null,null,null,null,null,null,null,null,null,null,null,null,null,null,null,null,null,null,null,null,null,null,null,null,null,null,null,null,null,null,null,null,null,null,null,null,null,null,null,null,null,null,null,null,null,null,null,null,null,null,null,null,null,null,null,null,null,null,null,null,null,null,null,null,null,null,null,null,null,null,null,null,null,null,null,null,null,null,null,null,null,null,null,null,null,null,null,null,null,null,null,"M. Nyun 4-20-2002"]
[null,null,null,null,null,null,null,null,null,null,null,null,null,null,null,null,null,null,null,null,null,null,null,null,null,null,null,null,null,null,null,null,null,null,null,null,null,null,null,null,null,null,null,null,null,null,null,null,null,null,null,null,null,null,null,null,null,null,null,null,null,null,null,null,null,null,null,null,null,null,null,null,null,null,null,null,null,null,null,null,null,null,null,null,null,null,null,null,null,null,null,null,null,null,null,null,null,null,null,null,null,null,null,null,null,null,null,null,null,null,null,null,null,null,null,"Checked By:"]
[null,null,null,null,null,null,null,null,null,null,null,null,null,null,null,null,null,null,null,null,null,null,null,null,null,null,null,null,null,null,null,null,null,null,null,null,null,null,null,null,null,null,null,null,null,null,null,null,null,null,null,null,null,null,null,null,null,null,null,null,null,null,null,null,null,null,null,null,null,null,null,null,null,null,null,null,null,null,null,null,"TC-01",null,null,null,null,null,null,null,"Two Speed Cooling Tower Fan with Bypass Valve Control Example",null,null,null,null,null,null,null,null,null,null,null,null,null,null,null,null,null,null,null,null,null,null,null,null,null,null,"M. Nature 7-20-2002"]
[null,null,null,null,null,null,null,null,null,null,null,null,null,null,null,null,null,null,null,null,null,null,null,null,null,null,null,null,null,null,null,null,null,null,null,null,null,null,null,null,null,null,null,null,null,null,null,null,null,null,null,null,null,null,null,null,null,null,null,null,null,null,null,null,null,null,null,null,null,null,null,null,null,null,null,null,null,null,null,null,null,null,null,null,null,null,null,null,null,null,null,null,null,null,null,null,null,null,null,null,null,null,null,null,null,null,null,null,null,null,null,null,null,null,null,"Rev",null,"Date"]
[]
[null,null,null,null,null,null,null,null,null,null,null,null,null,null,null,null,null,null,null,null,null,null,null,null,null,null,null,null,null,null,null,null,null,null,null,null,null,null,null,null,null,null,null,null,null,null,null,null,null,null,null,null,{"$f":"HYPERLINK(TEXT($AS$74,\"\")&\"\\\"&TEXT($AS$75,\"\")&\"#21\",\"Or Logic Block\")","v":"Or Logic Block"},null,null,null,null,null,null,null,null,null,null,null,null,null,null,null,null,null,null,null,null,{"$f":"HYPERLINK(TEXT($AS$74,\"\")&\"\\\"&TEXT($AS$75,\"\")&\"#25\",\"Nor (Not Or) Logic Block\")","v":"Nor (Not Or) Logic Block"}]
[null,null,null,null,null,null,null,null,null,null,null,null,null,null,null,null,null,null,null,null,null,null,null,null,null,null,null,null,null,null,null,null,null,null,null,null,null,null,null,null,null,null,null,null,null,null,null,null,null,null,null,null,null,null,null,null,null,null,null,null,null,null,null,null,null,null,null,null,null,null,null,null,null,null,null,null,null,null,null,null,"Supporting Information",null,null,null,null,null,null,null,"Supporting information for the Bureaucratic Affairs Building including a HW system diagram, floor plans with FTR zones shown, and images from the building model."]
[]
[]
[]
[]
[null,null,null,null,null,null,null,null,null,null,null,null,null,null,null,null,null,null,null,null,null,null,null,null,null,null,null,null,null,null,null,null,null,null,null,null,null,null,null,null,null,null,null,null,null,null,null,null,null,null,null,null,{"$f":"HYPERLINK(TEXT($AS$74,\"\")&\"\\\"&TEXT($AS$75,\"\")&\"#22\",\"Exclusive Or Logic Block\")","v":"Exclusive Or Logic Block"},null,null,null,null,null,null,null,null,null,null,null,null,null,null,null,null,null,null,null,null,{"$f":"HYPERLINK(TEXT($AS$74,\"\")&\"\\\"&TEXT($AS$75,\"\")&\"#23\",\"Not Logic Block\")","v":"Not Logic Block"}]
[]
[null,null,null,null,null,null,null,null,null,null,null,null,null,null,null,null,null,null,null,null,null,null,null,null,null,null,null,null,{"$f":"HYPERLINK(TEXT($AS$74,\"\")&\"\\\"&TEXT($AS$75,\"\")&\"#13\",\"Constant Logic Block\")","v":"Constant Logic Block"}]
[]
[]
[]
[null,null,null,null,null,null,null,null,null,null,null,null,null,null,null,null,null,null,null,null,null,null,null,null,null,null,null,null,null,null,null,null,null,null,null,null,null,null,null,null,null,null,null,null,null,null,null,null,null,null,null,null,null,null,null,null,null,null,null,null,null,null,null,null,{"$f":"HYPERLINK(TEXT($AS$74,\"\")&\"\\\"&TEXT($AS$75,\"\")&\"#26\",\"If Logic Block\")","v":"If Logic Block"}]
[]
[]
[]
[null,null,null,null,null,null,null,null,null,null,null,null,null,null,null,null,null,null,null,null,null,null,null,null,null,null,null,null,null,null,null,null,null,null,null,null,null,null,null,null,null,null,null,null,null,null,null,null,null,null,null,null,null,null,null,null,null,null,null,null,null,null,null,null,null,null,null,null,null,null,null,null,null,null,null,null,null,null,null,null,null,null,null,null,null,null,null,null,null,null,null,null,null,null,null,null,null,null,null,null,null,null,null,null,null,null,null,null,null,null,null,null,null,null,null,"Symbols and Abbreviations"]
[]
[]
[null,null,null,null,null,null,null,null,null,null,null,null,null,null,null,null,null,null,null,null,null,null,null,null,null,null,null,null,null,null,null,null,null,null,null,null,null,null,null,null,null,null,null,null,null,null,null,null,null,null,null,null,null,null,null,null,null,null,null,null,null,null,null,null,null,null,null,null,null,null,null,null,null,null,null,null,null,null,null,null,null,null,null,null,null,null,null,null,null,null,null,null,null,null,null,null,null,null,null,null,null,null,null,null,null,null,null,null,null,null,null,null,null,null,null,"TC-00"]
[]
[null,null,null,null,null,null,null,null,null,null,null,null,null,null,null,null,null,null,null,null,null,null,null,null,null,null,null,null,null,null,null,null,null,null,null,null,null,null,null,null,null,null,null,null,null,null,null,null,null,null,null,null,null,null,null,null,null,null,null,null,null,null,null,null,null,null,null,null,null,null,null,null,null,null,null,null,null,null,null,null,null,null,null,null,null,null,null,null,null,null,null,null,null,null,null,null,null,null,null,null,null,null,null,null,null,null,null,null,null,null,null,null,null,null,null,"OF ##"]
[]
[]
[]
[]
[null,"© 2017 Faciltiy Dynamics Engineering - All Rights Reserved"]
[]
[null,null,null,null,null,null,null,null,null,null,null,null,null,null,null,null,null,null,null,null,null,null,null,null,null,null,null,null,null,null,"Symbol Definition File Location - ",null,null,null,null,null,null,null,null,null,null,null,null,null,{"$f":"HYPERLINK(\"D:\\FDE Tools\\Logic Diagrams\\Logic Diagram Tool\")","v":"D:\\FDE Tools\\Logic Diagrams\\Logic Diagram Tool"}]
[null,null,null,null,null,null,null,null,null,null,null,null,null,null,null,null,null,null,null,null,null,null,null,null,null,null,null,null,null,null,"Symbol Definition File Name - ",null,null,null,null,null,null,null,null,null,null,null,null,null,"Logic Diagram Symbols v5.ppsx"]

{"sheet":"TC-01 Symbols","index":2,"n_rows":74,"n_cols":119,"rows_kept":74,"cut":false,"hidden":false,"merged":[[73,37,73,50],[73,51,73,69],[72,37,72,50],[72,51,72,69],[58,40,61,45],[17,19,20,26],[39,12,42,17],[27,12,30,21],[31,91,34,96],[28,40,31,45],[38,40,41,45],[66,115,67,120],[43,115,43,116],[43,117,43,120],[4,4,5,111],[1,115,26,116],[1,117,26,117],[1,118,26,120],[42,115,42,120],[28,115,31,120],[32,115,36,120],[37,115,37,120],[38,115,38,120],[39,115,39,120],[40,115,40,120],[41,115,41,120],[8,19,11,24],[8,65,11,70],[13,44,16,53],[19,65,22,70],[61,115,63,120],[64,115,65,120],[34,65,37,70],[12,91,15,96],[49,65,52,70],[44,101,47,106],[48,40,51,45]]}
[]
[null,null,null,null,null,null,null,null,null,null,null,null,null,null,null,null,null,null,null,null,null,null,null,null,null,null,null,null,null,null,null,null,null,null,null,null,null,null,null,null,null,null,null,null,null,null,null,null,null,null,null,null,null,null,null,null,null,null,null,null,null,null,null,null,null,null,null,null,null,null,null,null,null,null,null,null,null,null,null,null,null,null,null,null,null,null,null,null,null,null,null,null,null,null,null,null,null,null,null,null,null,null,null,null,null,null,null,null,null,null,null,null,null,null,null,"Morgan, Wright, Jungermann and Kelley",null,"Architects, Master Planners","2700 Gumby Place | Suite 1872 | San Deigo, CA 92101\n619.608.1887"]
[]
[]
[null,null,null,null,"Control Processes and Functions"]
[]
[]
[]
[null,null,null,null,null,null,null,null,null,null,null,null,null,null,null,null,null,null,null,{"$f":"HYPERLINK(TEXT($AZ$73,\"\")&\"\\\"&TEXT($AZ$74,\"\")&\"#27\",\"Piloted Switch Logic Block\")","v":"Piloted Switch Logic Block"},null,null,null,null,null,null,null,null,null,null,null,null,null,null,null,null,null,null,null,null,null,null,null,null,null,null,null,null,null,null,null,null,null,null,null,null,null,null,null,null,null,null,null,null,null,{"$f":"HYPERLINK(TEXT($AZ$73,\"\")&\"\\\"&TEXT($AZ$74,\"\")&\"#63\",\"Proof of Operation Logic Block\")","v":"Proof of Operation Logic Block"}]
[]
[]
[]
[null,null,null,null,null,null,null,null,null,null,null,null,null,null,null,null,null,null,null,null,null,null,null,null,null,null,null,null,null,null,null,null,null,null,null,null,null,null,null,null,null,null,null,null,null,null,null,null,null,null,null,null,null,null,null,null,null,null,null,null,null,null,null,null,null,null,null,null,null,null,null,null,null,null,null,null,null,null,null,null,null,null,null,null,null,null,null,null,null,null,null,{"$f":"HYPERLINK(TEXT($AZ$73,\"\")&\"\\\"&TEXT($AZ$74,\"\")&\"#44\",\"Ratio Logic Block\")","v":"Ratio Logic Block"}]
[null,null,null,null,null,null,null,null,null,null,null,null,null,null,null,null,null,null,null,null,null,null,null,null,null,null,null,null,null,null,null,null,null,null,null,null,null,null,null,null,null,null,null,null,{"$f":"HYPERLINK(TEXT($AZ$73,\"\")&\"\\\"&TEXT($AZ$74,\"\")&\"#53\",\"Set Point Optimization (Trim and Respond) Logic Block\")","v":"Set Point Optimization (Trim and Respond) Logic Block"}]
[]
[]
[]
[null,null,null,null,null,null,null,null,null,null,null,null,null,null,null,null,null,null,null,{"$f":"HYPERLINK(TEXT($AZ$73,\"\")&\"\\\"&TEXT($AZ$74,\"\")&\"#30\",\"Dead Band Piloted Switch Logic Block\")","v":"Dead Band Piloted Switch Logic Block"}]
[]
[null,null,null,null,null,null,null,null,null,null,null,null,null,null,null,null,null,null,null,null,null,null,null,null,null,null,null,null,null,null,null,null,null,null,null,null,null,null,null,null,null,null,null,null,null,null,null,null,null,null,null,null,null,null,null,null,null,null,null,null,null,null,null,null,null,{"$f":"HYPERLINK(TEXT($AZ$73,\"\")&\"\\\"&TEXT($AZ$74,\"\")&\"#60\",\"High Selector Logic Block\")","v":"High Selector Logic Block"}]
[]
[]
[]
[]
[]
[]
[]
[null,null,null,null,null,null,null,null,null,null,null,null,{"$f":"HYPERLINK(TEXT($AZ$73,\"\")&\"\\\"&TEXT($AZ$74,\"\")&\"#34\",\"PID (Proportional + Integral + Derivative) Loop Logic Block\")","v":"PID (Proportional + Integral + Derivative) Loop Logic Block"}]
[null,null,null,null,null,null,null,null,null,null,null,null,null,null,null,null,null,null,null,null,null,null,null,null,null,null,null,null,null,null,null,null,null,null,null,null,null,null,null,null,{"$f":"HYPERLINK(TEXT($AZ$73,\"\")&\"\\\"&TEXT($AZ$74,\"\")&\"#48\",\"Ramp Up Logic Block\")","v":"Ramp Up Logic Block"},null,null,null,null,null,null,null,null,null,null,null,null,null,null,null,null,null,null,null,null,null,null,null,null,null,null,null,null,null,null,null,null,null,null,null,null,null,null,null,null,null,null,null,null,null,null,null,null,null,null,null,null,null,null,null,null,null,null,null,null,null,null,null,null,null,null,null,null,null,null,null,null,null,null,"Hijend Hospitality Interntational"]
[]
[]
[null,null,null,null,null,null,null,null,null,null,null,null,null,null,null,null,null,null,null,null,null,null,null,null,null,null,null,null,null,null,null,null,null,null,null,null,null,null,null,null,null,null,null,null,null,null,null,null,null,null,null,null,null,null,null,null,null,null,null,null,null,null,null,null,null,null,null,null,null,null,null,null,null,null,null,null,null,null,null,null,null,null,null,null,null,null,null,null,null,null,null,{"$f":"HYPERLINK(TEXT($AZ$73,\"\")&\"\\\"&TEXT($AZ$74,\"\")&\"#46\",\"Reset Logic Block\")","v":"Reset Logic Block"}]
[null,null,null,null,null,null,null,null,null,null,null,null,null,null,null,null,null,null,null,null,null,null,null,null,null,null,null,null,null,null,null,null,null,null,null,null,null,null,null,null,null,null,null,null,null,null,null,null,null,null,null,null,null,null,null,null,null,null,null,null,null,null,null,null,null,null,null,null,null,null,null,null,null,null,null,null,null,null,null,null,null,null,null,null,null,null,null,null,null,null,null,null,null,null,null,null,null,null,null,null,null,null,null,null,null,null,null,null,null,null,null,null,null,null,null,"San Diego Bayview Marquis Hotel and Marina"]
[]
[null,null,null,null,null,null,null,null,null,null,null,null,null,null,null,null,null,null,null,null,null,null,null,null,null,null,null,null,null,null,null,null,null,null,null,null,null,null,null,null,null,null,null,null,null,null,null,null,null,null,null,null,null,null,null,null,null,null,null,null,null,null,null,null,null,{"$f":"HYPERLINK(TEXT($AZ$73,\"\")&\"\\\"&TEXT($AZ$74,\"\")&\"#61\",\"Low Selector Logic Block\")","v":"Low Selector Logic Block"}]
[]
[]
[null,null,null,null,null,null,null,null,null,null,null,null,null,null,null,null,null,null,null,null,null,null,null,null,null,null,null,null,null,null,null,null,null,null,null,null,null,null,null,null,null,null,null,null,null,null,null,null,null,null,null,null,null,null,null,null,null,null,null,null,null,null,null,null,null,null,null,null,null,null,null,null,null,null,null,null,null,null,null,null,null,null,null,null,null,null,null,null,null,null,null,null,null,null,null,null,null,null,null,null,null,null,null,null,null,null,null,null,null,null,null,null,null,null,null,"Issued for Bid:"]
[null,null,null,null,null,null,null,null,null,null,null,null,null,null,null,null,null,null,null,null,null,null,null,null,null,null,null,null,null,null,null,null,null,null,null,null,null,null,null,null,{"$f":"HYPERLINK(TEXT($AZ$73,\"\")&\"\\\"&TEXT($AZ$74,\"\")&\"#49\",\"Ramp Down Logic Block\")","v":"Ramp Down Logic Block"},null,null,null,null,null,null,null,null,null,null,null,null,null,null,null,null,null,null,null,null,null,null,null,null,null,null,null,null,null,null,null,null,null,null,null,null,null,null,null,null,null,null,null,null,null,null,null,null,null,null,null,null,null,null,null,null,null,null,null,null,null,null,null,null,null,null,null,null,null,null,null,null,null,null,"2002-09-20"]
[null,null,null,null,null,null,null,null,null,null,null,null,{"$f":"HYPERLINK(TEXT($AZ$73,\"\")&\"\\\"&TEXT($AZ$74,\"\")&\"#36\",\"Floating Control Logic Block\")","v":"Floating Control Logic Block"},null,null,null,null,null,null,null,null,null,null,null,null,null,null,null,null,null,null,null,null,null,null,null,null,null,null,null,null,null,null,null,null,null,null,null,null,null,null,null,null,null,null,null,null,null,null,null,null,null,null,null,null,null,null,null,null,null,null,null,null,null,null,null,null,null,null,null,null,null,null,null,null,null,null,null,null,null,null,null,null,null,null,null,null,null,null,null,null,null,null,null,null,null,null,null,null,null,null,null,null,null,null,"Drawn By:"]
[null,null,null,null,null,null,null,null,null,null,null,null,null,null,null,null,null,null,null,null,null,null,null,null,null,null,null,null,null,null,null,null,null,null,null,null,null,null,null,null,null,null,null,null,null,null,null,null,null,null,null,null,null,null,null,null,null,null,null,null,null,null,null,null,null,null,null,null,null,null,null,null,null,null,null,null,null,null,null,null,null,null,null,null,null,null,null,null,null,null,null,null,null,null,null,null,null,null,null,null,null,null,null,null,null,null,null,null,null,null,null,null,null,null,null,"M. Nyun 4-20-2002"]
[null,null,null,null,null,null,null,null,null,null,null,null,null,null,null,null,null,null,null,null,null,null,null,null,null,null,null,null,null,null,null,null,null,null,null,null,null,null,null,null,null,null,null,null,null,null,null,null,null,null,null,null,null,null,null,null,null,null,null,null,null,null,null,null,null,null,null,null,null,null,null,null,null,null,null,null,null,null,null,null,null,null,null,null,null,null,null,null,null,null,null,null,null,null,null,null,null,null,null,null,null,null,null,null,null,null,null,null,null,null,null,null,null,null,null,"Checked By:"]
[null,null,null,null,null,null,null,null,null,null,null,null,null,null,null,null,null,null,null,null,null,null,null,null,null,null,null,null,null,null,null,null,null,null,null,null,null,null,null,null,null,null,null,null,null,null,null,null,null,null,null,null,null,null,null,null,null,null,null,null,null,null,null,null,null,null,null,null,null,null,null,null,null,null,null,null,null,null,null,null,null,null,null,null,null,null,null,null,null,null,null,null,null,null,null,null,null,null,null,null,null,null,null,null,null,null,null,null,null,null,null,null,null,null,null,"M. Nature 7-20-2002"]
[null,null,null,null,null,null,null,null,null,null,null,null,null,null,null,null,null,null,null,null,null,null,null,null,null,null,null,null,null,null,null,null,null,null,null,null,null,null,null,null,null,null,null,null,null,null,null,null,null,null,null,null,null,null,null,null,null,null,null,null,null,null,null,null,null,null,null,null,null,null,null,null,null,null,null,null,null,null,null,null,null,null,null,null,null,null,null,null,null,null,null,null,null,null,null,null,null,null,null,null,null,null,null,null,null,null,null,null,null,null,null,null,null,null,null,"Rev",null,"Date"]
[null,null,null,null,null,null,null,null,null,null,null,null,null,null,null,null,null,null,null,null,null,null,null,null,null,null,null,null,null,null,null,null,null,null,null,null,null,null,null,null,null,null,null,null,null,null,null,null,null,null,null,null,null,null,null,null,null,null,null,null,null,null,null,null,null,null,null,null,null,null,null,null,null,null,null,null,null,null,null,null,null,null,null,null,null,null,null,null,null,null,null,null,null,null,null,null,null,null,null,null,null,{"$f":"HYPERLINK(TEXT($AZ$73,\"\")&\"\\\"&TEXT($AZ$74,\"\")&\"#58\",\"Calculation Logic Block\")","v":"Calculation Logic Block"}]
[]
[]
[]
[null,null,null,null,null,null,null,null,null,null,null,null,null,null,null,null,null,null,null,null,null,null,null,null,null,null,null,null,null,null,null,null,null,null,null,null,null,null,null,null,{"$f":"HYPERLINK(TEXT($AZ$73,\"\")&\"\\\"&TEXT($AZ$74,\"\")&\"#50\",\"Start Ramp Logic Block\")","v":"Start Ramp Logic Block"}]
[null,null,null,null,null,null,null,null,null,null,null,null,null,null,null,null,null,null,null,null,null,null,null,null,null,null,null,null,null,null,null,null,null,null,null,null,null,null,null,null,null,null,null,null,null,null,null,null,null,null,null,null,null,null,null,null,null,null,null,null,null,null,null,null,null,{"$f":"HYPERLINK(TEXT($AZ$73,\"\")&\"\\\"&TEXT($AZ$74,\"\")&\"#62\",\"Averaging Logic Block\")","v":"Averaging Logic Block"}]
[]
[]
[]
[]
[]
[]
[]
[]
[null,null,null,null,null,null,null,null,null,null,null,null,null,null,null,null,null,null,null,null,null,null,null,null,null,null,null,null,null,null,null,null,null,null,null,null,null,null,null,null,{"$f":"HYPERLINK(TEXT($AZ$73,\"\")&\"\\\"&TEXT($AZ$74,\"\")&\"#52\",\"Stop Ramp Logic Block\")","v":"Stop Ramp Logic Block"}]
[]
[]
[null,null,null,null,null,null,null,null,null,null,null,null,null,null,null,null,null,null,null,null,null,null,null,null,null,null,null,null,null,null,null,null,null,null,null,null,null,null,null,null,null,null,null,null,null,null,null,null,null,null,null,null,null,null,null,null,null,null,null,null,null,null,null,null,null,null,null,null,null,null,null,null,null,null,null,null,null,null,null,null,null,null,null,null,null,null,null,null,null,null,null,null,null,null,null,null,null,null,null,null,null,null,null,null,null,null,null,null,null,null,null,null,null,null,null,"Symbols and Abbreviations"]
[]
[]
[null,null,null,null,null,null,null,null,null,null,null,null,null,null,null,null,null,null,null,null,null,null,null,null,null,null,null,null,null,null,null,null,null,null,null,null,null,null,null,null,null,null,null,null,null,null,null,null,null,null,null,null,null,null,null,null,null,null,null,null,null,null,null,null,null,null,null,null,null,null,null,null,null,null,null,null,null,null,null,null,null,null,null,null,null,null,null,null,null,null,null,null,null,null,null,null,null,null,null,null,null,null,null,null,null,null,null,null,null,null,null,null,null,null,null,"TC-01"]
[]
[null,null,null,null,null,null,null,null,null,null,null,null,null,null,null,null,null,null,null,null,null,null,null,null,null,null,null,null,null,null,null,null,null,null,null,null,null,null,null,null,null,null,null,null,null,null,null,null,null,null,null,null,null,null,null,null,null,null,null,null,null,null,null,null,null,null,null,null,null,null,null,null,null,null,null,null,null,null,null,null,null,null,null,null,null,null,null,null,null,null,null,null,null,null,null,null,null,null,null,null,null,null,null,null,null,null,null,null,null,null,null,null,null,null,null,"OF ##"]
[]
[]
[]
[null,"© 2017 Faciltiy Dynamics Engineering - All Rights Reserved"]
[]
[null,null,null,null,null,null,null,null,null,null,null,null,null,null,null,null,null,null,null,null,null,null,null,null,null,null,null,null,null,null,null,null,null,null,null,null,null,"Symbol Definition File Location - ",null,null,null,null,null,null,null,null,null,null,null,null,null,{"$f":"'TC-00 Symbols'!AS74","v":"D:\\FDE Tools\\Logic Diagrams\\Logic Diagram Tool"}]
[null,null,null,null,null,null,null,null,null,null,null,null,null,null,null,null,null,null,null,null,null,null,null,null,null,null,null,null,null,null,null,null,null,null,null,null,null,"Symbol Definition File Name - ",null,null,null,null,null,null,null,null,null,null,null,null,null,{"$f":"'TC-00 Symbols'!AS75","v":"Logic Diagram Symbols v5.ppsx"}]

{"sheet":"TC-02 Symbols","index":3,"n_rows":74,"n_cols":119,"rows_kept":74,"cut":false,"hidden":false,"merged":[[4,4,5,35],[4,42,5,73],[43,115,43,116],[43,117,43,120],[61,115,63,120],[38,115,38,120],[39,115,39,120],[40,115,40,120],[41,115,41,120],[42,115,42,120],[28,115,31,120],[32,115,36,120],[37,115,37,120],[1,115,26,116],[1,117,26,117],[1,118,26,120],[73,37,73,50],[73,51,73,69],[64,115,65,120],[66,115,67,120],[72,37,72,50],[72,51,72,69],[52,13,55,18],[58,13,61,18],[8,59,11,66],[14,59,17,66],[20,59,23,66],[26,59,29,66],[34,59,37,64],[10,13,13,18],[19,13,22,18],[28,13,31,20],[37,13,40,18],[45,13,48,18],[9,34,12,39],[41,59,44,64]]}
[]
[null,null,null,null,null,null,null,null,null,null,null,null,null,null,null,null,null,null,null,null,null,null,null,null,null,null,null,null,null,null,null,null,null,null,null,null,null,null,null,null,null,null,null,null,null,null,null,null,null,null,null,null,null,null,null,null,null,null,null,null,null,null,null,null,null,null,null,null,null,null,null,null,null,null,null,null,null,null,null,null,null,null,null,null,null,null,null,null,null,null,null,null,null,null,null,null,null,null,null,null,null,null,null,null,null,null,null,null,null,null,null,null,null,null,null,"Morgan, Wright, Jungermann and Kelley",null,"Architects, Master Planners","2700 Gumby Place | Suite 1872 | San Deigo, CA 92101\n619.608.1887"]
[]
[]
[null,null,null,null,"Timers, Counters, and Clocks",null,null,null,null,null,null,null,null,null,null,null,null,null,null,null,null,null,null,null,null,null,null,null,null,null,null,null,null,null,null,null,null,null,null,null,null,null,"Graphics, Trends, Alarms, Messages"]
[]
[]
[]
[null,null,null,null,null,null,null,null,null,null,null,null,null,null,null,null,null,null,null,null,null,null,null,null,null,null,null,null,null,null,null,null,null,null,null,null,null,null,null,null,null,null,null,null,null,null,null,null,null,null,null,null,null,null,null,null,null,null,null,{"$f":"HYPERLINK(TEXT($AZ$73,\"\")&\"\\\"&TEXT($AZ$74,\"\")&\"#73\",\"Display Value on System Graphic Logic Block\")","v":"Display Value on System Graphic Logic Block"}]
[null,null,null,null,null,null,null,null,null,null,null,null,null,null,null,null,null,null,null,null,null,null,null,null,null,null,null,null,null,null,null,null,null,null,{"$f":"HYPERLINK(TEXT($AZ$73,\"\")&\"\\\"&TEXT($AZ$74,\"\")&\"#70\",\"One Shot Relay\")","v":"One Shot Relay"}]
[null,null,null,null,null,null,null,null,null,null,null,null,null,{"$f":"HYPERLINK(TEXT($AZ$73,\"\")&\"\\\"&TEXT($AZ$74,\"\")&\"#65\",\"Counter Logic Block\")","v":"Counter Logic Block"}]
[]
[]
[]
[null,null,null,null,null,null,null,null,null,null,null,null,null,null,null,null,null,null,null,null,null,null,null,null,null,null,null,null,null,null,null,null,null,null,null,null,null,null,null,null,null,null,null,null,null,null,null,null,null,null,null,null,null,null,null,null,null,null,null,{"$f":"HYPERLINK(TEXT($AZ$73,\"\")&\"\\\"&TEXT($AZ$74,\"\")&\"#73\",\"Trend Parameter and Archive Data Logic Block\")","v":"Trend Parameter and Archive Data Logic Block"}]
[]
[]
[]
[]
[null,null,null,null,null,null,null,null,null,null,null,null,null,{"$f":"HYPERLINK(TEXT($AZ$73,\"\")&\"\\\"&TEXT($AZ$74,\"\")&\"#66\",\"Interval Timer Logic Block\")","v":"Interval Timer Logic Block"}]
[null,null,null,null,null,null,null,null,null,null,null,null,null,null,null,null,null,null,null,null,null,null,null,null,null,null,null,null,null,null,null,null,null,null,null,null,null,null,null,null,null,null,null,null,null,null,null,null,null,null,null,null,null,null,null,null,null,null,null,{"$f":"HYPERLINK(TEXT($AZ$73,\"\")&\"\\\"&TEXT($AZ$74,\"\")&\"#73\",\"Alarm Based on Parameter Logic Block\")","v":"Alarm Based on Parameter Logic Block"}]
[]
[]
[]
[]
[]
[null,null,null,null,null,null,null,null,null,null,null,null,null,null,null,null,null,null,null,null,null,null,null,null,null,null,null,null,null,null,null,null,null,null,null,null,null,null,null,null,null,null,null,null,null,null,null,null,null,null,null,null,null,null,null,null,null,null,null,{"$f":"HYPERLINK(TEXT($AZ$73,\"\")&\"\\\"&TEXT($AZ$74,\"\")&\"#74\",\"Operator Message Logic Block\")","v":"Operator Message Logic Block"}]
[]
[null,null,null,null,null,null,null,null,null,null,null,null,null,{"$f":"HYPERLINK(TEXT($AZ$73,\"\")&\"\\\"&TEXT($AZ$74,\"\")&\"#67\",\"Time Clock/Scheduler Logic Block\")","v":"Time Clock/Scheduler Logic Block"},null,null,null,null,null,null,null,null,null,null,null,null,null,null,null,null,null,null,null,null,null,null,null,null,null,null,null,null,null,null,null,null,null,null,null,null,null,null,null,null,null,null,null,null,null,null,null,null,null,null,null,null,null,null,null,null,null,null,null,null,null,null,null,null,null,null,null,null,null,null,null,null,null,null,null,null,null,null,null,null,null,null,null,null,null,null,null,null,null,null,null,null,null,null,null,null,null,null,null,null,null,"Hijend Hospitality Interntational"]
[]
[]
[]
[null,null,null,null,null,null,null,null,null,null,null,null,null,null,null,null,null,null,null,null,null,null,null,null,null,null,null,null,null,null,null,null,null,null,null,null,null,null,null,null,null,null,null,null,null,null,null,null,null,null,null,null,null,null,null,null,null,null,null,null,null,null,null,null,null,null,null,null,null,null,null,null,null,null,null,null,null,null,null,null,null,null,null,null,null,null,null,null,null,null,null,null,null,null,null,null,null,null,null,null,null,null,null,null,null,null,null,null,null,null,null,null,null,null,null,"San Diego Bayview Marquis Hotel and Marina"]
[]
[null,null,null,null,null,null,null,null,null,null,null,null,null,null,null,null,null,null,null,null,null,null,null,null,null,null,null,null,null,null,null,null,null,null,null,null,null,null,null,null,null,null,null,null,null,null,null,null,null,null,null,null,null,null,null,null,null,null,null,{"$f":"HYPERLINK(TEXT($AZ$73,\"\")&\"\\\"&TEXT($AZ$74,\"\")&\"#74\",\"Run Time Monitor Logic Block\")","v":"Run Time Monitor Logic Block"}]
[]
[]
[null,null,null,null,null,null,null,null,null,null,null,null,null,{"$f":"HYPERLINK(TEXT($AZ$73,\"\")&\"\\\"&TEXT($AZ$74,\"\")&\"#68\",\"On Delay Logic Block\")","v":"On Delay Logic Block"},null,null,null,null,null,null,null,null,null,null,null,null,null,null,null,null,null,null,null,null,null,null,null,null,null,null,null,null,null,null,null,null,null,null,null,null,null,null,null,null,null,null,null,null,null,null,null,null,null,null,null,null,null,null,null,null,null,null,null,null,null,null,null,null,null,null,null,null,null,null,null,null,null,null,null,null,null,null,null,null,null,null,null,null,null,null,null,null,null,null,null,null,null,null,null,null,null,null,null,null,null,"Issued for Bid:"]
[null,null,null,null,null,null,null,null,null,null,null,null,null,null,null,null,null,null,null,null,null,null,null,null,null,null,null,null,null,null,null,null,null,null,null,null,null,null,null,null,null,null,null,null,null,null,null,null,null,null,null,null,null,null,null,null,null,null,null,null,null,null,null,null,null,null,null,null,null,null,null,null,null,null,null,null,null,null,null,null,null,null,null,null,null,null,null,null,null,null,null,null,null,null,null,null,null,null,null,null,null,null,null,null,null,null,null,null,null,null,null,null,null,null,null,"2002-09-20"]
[null,null,null,null,null,null,null,null,null,null,null,null,null,null,null,null,null,null,null,null,null,null,null,null,null,null,null,null,null,null,null,null,null,null,null,null,null,null,null,null,null,null,null,null,null,null,null,null,null,null,null,null,null,null,null,null,null,null,null,null,null,null,null,null,null,null,null,null,null,null,null,null,null,null,null,null,null,null,null,null,null,null,null,null,null,null,null,null,null,null,null,null,null,null,null,null,null,null,null,null,null,null,null,null,null,null,null,null,null,null,null,null,null,null,null,"Drawn By:"]
[null,null,null,null,null,null,null,null,null,null,null,null,null,null,null,null,null,null,null,null,null,null,null,null,null,null,null,null,null,null,null,null,null,null,null,null,null,null,null,null,null,null,null,null,null,null,null,null,null,null,null,null,null,null,null,null,null,null,null,null,null,null,null,null,null,null,null,null,null,null,null,null,null,null,null,null,null,null,null,null,null,null,null,null,null,null,null,null,null,null,null,null,null,null,null,null,null,null,null,null,null,null,null,null,null,null,null,null,null,null,null,null,null,null,null,"M. Nyun 4-20-2002"]
[null,null,null,null,null,null,null,null,null,null,null,null,null,null,null,null,null,null,null,null,null,null,null,null,null,null,null,null,null,null,null,null,null,null,null,null,null,null,null,null,null,null,null,null,null,null,null,null,null,null,null,null,null,null,null,null,null,null,null,{"$f":"HYPERLINK(TEXT($BC$66,\"\")&\"\\\"&TEXT($BC$67,\"\")&\"#81\",\"Hard Wired Safety\")","v":"Hard Wired Safety"},null,null,null,null,null,null,null,null,null,null,null,null,null,null,null,null,null,null,null,null,null,null,null,null,null,null,null,null,null,null,null,null,null,null,null,null,null,null,null,null,null,null,null,null,null,null,null,null,null,null,null,null,null,null,null,"Checked By:"]
[null,null,null,null,null,null,null,null,null,null,null,null,null,null,null,null,null,null,null,null,null,null,null,null,null,null,null,null,null,null,null,null,null,null,null,null,null,null,null,null,null,null,null,null,null,null,null,null,null,null,null,null,null,null,null,null,null,null,null,null,null,null,null,null,null,null,null,null,null,null,null,null,null,null,null,null,null,null,null,null,null,null,null,null,null,null,null,null,null,null,null,null,null,null,null,null,null,null,null,null,null,null,null,null,null,null,null,null,null,null,null,null,null,null,null,"M. Nature 7-20-2002"]
[null,null,null,null,null,null,null,null,null,null,null,null,null,null,null,null,null,null,null,null,null,null,null,null,null,null,null,null,null,null,null,null,null,null,null,null,null,null,null,null,null,null,null,null,null,null,null,null,null,null,null,null,null,null,null,null,null,null,null,null,null,null,null,null,null,null,null,null,null,null,null,null,null,null,null,null,null,null,null,null,null,null,null,null,null,null,null,null,null,null,null,null,null,null,null,null,null,null,null,null,null,null,null,null,null,null,null,null,null,null,null,null,null,null,null,"Rev",null,"Date"]
[]
[null,null,null,null,null,null,null,null,null,null,null,null,null,{"$f":"HYPERLINK(TEXT($AZ$73,\"\")&\"\\\"&TEXT($AZ$74,\"\")&\"#69\",\"Off Delay Logic Block\")","v":"Off Delay Logic Block"}]
[]
[]
[]
[]
[]
[]
[null,null,null,null,null,null,null,null,null,null,null,null,null,{"$f":"HYPERLINK(TEXT($AZ$73,\"\")&\"\\\"&TEXT($AZ$74,\"\")&\"#71\",\"Latch On Logic Block\")","v":"Latch On Logic Block"}]
[]
[]
[]
[]
[]
[null,null,null,null,null,null,null,null,null,null,null,null,null,{"$f":"HYPERLINK(TEXT($AZ$73,\"\")&\"\\\"&TEXT($AZ$74,\"\")&\"#72\",\"Latch Off Logic Block\")","v":"Latch Off Logic Block"}]
[]
[]
[null,null,null,null,null,null,null,null,null,null,null,null,null,null,null,null,null,null,null,null,null,null,null,null,null,null,null,null,null,null,null,null,null,null,null,null,null,null,null,null,null,null,null,null,null,null,null,null,null,null,null,null,null,null,null,null,null,null,null,null,null,null,null,null,null,null,null,null,null,null,null,null,null,null,null,null,null,null,null,null,null,null,null,null,null,null,null,null,null,null,null,null,null,null,null,null,null,null,null,null,null,null,null,null,null,null,null,null,null,null,null,null,null,null,null,"Symbols and Abbreviations"]
[]
[]
[null,null,null,null,null,null,null,null,null,null,null,null,null,null,null,null,null,null,null,null,null,null,null,null,null,null,null,null,null,null,null,null,null,null,null,null,null,null,null,null,null,null,null,null,null,null,null,null,null,null,null,null,null,null,null,null,null,null,null,null,null,null,null,null,null,null,null,null,null,null,null,null,null,null,null,null,null,null,null,null,null,null,null,null,null,null,null,null,null,null,null,null,null,null,null,null,null,null,null,null,null,null,null,null,null,null,null,null,null,null,null,null,null,null,null,"TC-02"]
[]
[null,null,null,null,null,null,null,null,null,null,null,null,null,null,null,null,null,null,null,null,null,null,null,null,null,null,null,null,null,null,null,null,null,null,null,null,null,null,null,null,null,null,null,null,null,null,null,null,null,null,null,null,null,null,null,null,null,null,null,null,null,null,null,null,null,null,null,null,null,null,null,null,null,null,null,null,null,null,null,null,null,null,null,null,null,null,null,null,null,null,null,null,null,null,null,null,null,null,null,null,null,null,null,null,null,null,null,null,null,null,null,null,null,null,null,"OF ##"]
[]
[]
[]
[null,"© 2017 Faciltiy Dynamics Engineering - All Rights Reserved"]
[]
[null,null,null,null,null,null,null,null,null,null,null,null,null,null,null,null,null,null,null,null,null,null,null,null,null,null,null,null,null,null,null,null,null,null,null,null,null,"Symbol Definition File Location - ",null,null,null,null,null,null,null,null,null,null,null,null,null,{"$f":"'TC-00 Symbols'!AS74","v":"D:\\FDE Tools\\Logic Diagrams\\Logic Diagram Tool"}]
[null,null,null,null,null,null,null,null,null,null,null,null,null,null,null,null,null,null,null,null,null,null,null,null,null,null,null,null,null,null,null,null,null,null,null,null,null,"Symbol Definition File Name - ",null,null,null,null,null,null,null,null,null,null,null,null,null,{"$f":"'TC-00 Symbols'!AS75","v":"Logic Diagram Symbols v5.ppsx"}]

{"sheet":"HW Hx Cntrl Basic","index":4,"n_rows":74,"n_cols":119,"rows_kept":74,"cut":false,"hidden":false,"merged":[[42,115,42,120],[1,115,26,116],[1,117,26,117],[1,118,26,120],[2,2,3,72],[28,115,31,120],[32,115,36,120],[37,115,37,120],[38,115,38,120],[39,115,39,120],[40,115,40,120],[41,115,41,120],[43,115,43,116],[43,117,43,120],[60,42,60,43],[60,44,60,113],[61,42,61,43],[61,44,61,113],[61,115,63,120],[62,42,62,43],[62,44,62,113],[63,42,63,43],[63,44,63,113],[64,115,65,120],[66,42,66,111],[66,115,67,120],[73,37,73,50],[73,51,73,69]]}
[null,null,null,null,null,null,null,null,null,null,null,null,null,null,null,null,null,null,null,null,null,null,null,null,null,null,null,null,null,null,null,null,null,null,null,null,null,null,null,null,null,null,null,null,null,null,null,{"$f":"-BS3:DI3","v":{"$error":"#VALUE!"}}]
[null,null,null,null,null,null,null,null,null,null,null,null,null,null,null,null,null,null,null,null,null,null,null,null,null,null,null,null,null,null,null,null,null,null,null,null,null,null,null,null,null,null,null,null,null,null,null,null,null,null,null,null,null,null,null,null,null,null,null,null,null,null,null,null,null,null,null,null,null,null,null,null,null,null,null,null,null,null,null,null,null,null,null,null,null,null,null,null,null,null,null,null,null,null,null,null,null,null,null,null,null,null,null,null,null,null,null,null,null,null,null,null,null,null,null,"Morgan, Wright, Jungermann and Kelley",null,"Architects, Master Planners","2700 Gumby Place | Suite 1872 | San Deigo, CA 92101\n619.608.1887"]
[null,null,"Bureaucratic Affairs Building Heating Hot Water System (BA-1-HWS) Hot Water Heat Exchanger Control"]
[]
[null,null,null,null,null,null,null,null,null,null,null,null,null,null,null,null,null,null,null,null,null,null,null,null,null,null,null,null,null,null,null,null,null,null,null,null,null,null,null,null,null,null,null,null,null,null,null,null,null,null,null,null,"+"]
[]
[]
[]
[]
[]
[]
[]
[]
[]
[]
[]
[]
[]
[]
[]
[]
[]
[]
[null,null,null,null,null,null,null,null,null,null,null,null,null,null,null,null,null,null,null,null,null,null,null,null,null,null,null,null,null,null,null,null,null,null,null,null,null,null,"-"]
[]
[]
[]
[]
[null,null,null,null,null,null,null,null,null,null,null,null,null,null,null,null,null,null,null,null,null,null,null,null,null,null,null,null,null,null,null,null,null,null,null,null,null,null,null,null,null,null,null,null,null,null,null,null,null,null,null,null,null,null,null,null,null,null,null,null,null,null,null,null,null,null,null,null,null,null,null,null,null,null,null,null,null,null,null,null,null,null,null,null,null,null,null,null,null,null,null,null,null,null,null,null,null,null,null,null,null,null,null,null,null,null,null,null,null,null,null,null,null,null,null,"State\nOf\nAnxiety"]
[]
[]
[]
[null,null,null,null,null,null,null,null,null,null,null,null,null,null,null,null,null,null,null,null,null,null,null,null,null,null,null,null,null,null,null,null,null,null,null,null,null,null,null,null,null,null,null,null,null,null,null,null,null,null,null,null,null,null,null,null,null,null,null,null,null,null,null,null,null,null,null,null,null,null,null,null,null,null,null,null,null,null,null,null,null,null,null,null,null,null,null,null,null,null,null,null,null,null,null,null,null,null,null,null,null,null,null,null,null,null,null,null,null,null,null,null,null,null,null,"Bureaucratic Affairs Bldg. Control Upgrade"]
[]
[]
[]
[]
[null,null,null,null,null,null,null,null,null,null,null,null,null,null,null,null,null,null,null,null,null,null,null,null,null,null,null,null,null,null,null,null,null,null,null,null,null,null,null,null,null,null,null,null,null,null,null,null,null,null,null,null,null,null,null,null,null,null,null,null,null,null,null,null,null,null,null,null,null,null,null,null,null,null,null,null,null,null,null,null,null,null,null,null,null,null,null,null,null,null,null,null,null,null,null,null,null,null,null,null,null,null,null,null,null,null,null,null,null,null,null,null,null,null,null,"Issued for Bid:"]
[null,null,null,null,null,null,null,null,null,null,null,null,null,null,null,null,null,null,null,null,null,null,null,null,null,null,null,null,null,null,null,null,null,null,null,null,null,null,null,null,null,null,null,null,null,null,null,null,null,null,null,null,null,null,null,null,null,null,null,null,null,null,null,null,null,null,null,null,null,null,null,null,null,null,null,null,null,null,null,null,null,null,null,null,null,null,null,null,null,null,null,null,null,null,null,null,null,null,null,null,null,null,null,null,null,null,null,null,null,null,null,null,null,null,null,"2008-09-20"]
[null,null,null,null,null,null,null,null,null,null,null,null,null,null,null,null,null,null,null,null,null,null,null,null,null,null,null,null,null,null,null,null,null,null,null,null,null,null,null,null,null,null,null,null,null,null,null,null,null,null,null,null,null,null,null,null,null,null,null,null,null,null,null,null,null,null,null,null,null,null,null,null,null,null,null,null,null,null,null,null,null,null,null,null,null,null,null,null,null,null,null,null,null,null,null,null,null,null,null,null,null,null,null,null,null,null,null,null,null,null,null,null,null,null,null,"Drawn By:"]
[null,null,null,null,null,null,null,null,null,null,null,null,null,null,null,null,null,null,null,null,null,null,null,null,null,null,null,null,null,null,null,null,null,null,null,null,null,null,null,null,null,null,null,null,null,null,null,null,null,null,null,null,null,null,null,null,null,null,null,null,null,null,null,null,null,null,null,null,null,null,null,null,null,null,null,null,null,null,null,null,null,null,null,null,null,null,null,null,null,null,null,null,null,null,null,null,null,null,null,null,null,null,null,null,null,null,null,null,null,null,null,null,null,null,null,"M. Nyun 4-20-2008"]
[null,null,null,null,null,null,null,null,null,null,null,null,null,null,null,null,null,null,null,null,null,null,null,null,null,null,null,null,null,null,null,null,null,null,null,null,null,null,null,null,null,null,null,null,null,null,null,null,null,null,null,null,null,null,null,null,null,null,null,null,null,null,null,null,null,null,null,null,null,null,null,null,null,null,null,null,null,null,null,null,null,null,null,null,null,null,null,null,null,null,null,null,null,null,null,null,null,null,null,null,null,null,null,null,null,null,null,null,null,null,null,null,null,null,null,"Checked By:"]
[null,null,null,null,null,null,null,null,null,null,null,null,null,null,null,null,null,null,null,null,null,null,null,null,null,null,null,null,null,null,null,null,null,null,null,null,null,null,null,null,null,null,null,null,null,null,null,null,null,null,null,null,null,null,null,null,null,null,null,null,null,null,null,null,null,null,null,null,null,null,null,null,null,null,null,null,null,null,null,null,null,null,null,null,null,null,null,null,null,null,null,null,null,null,null,null,null,null,null,null,null,null,null,null,null,null,null,null,null,null,null,null,null,null,null,"M. Nature 7-20-2008"]
[null,null,null,null,null,null,null,null,null,null,null,null,null,null,null,null,null,null,null,null,null,null,null,null,null,null,null,null,null,null,null,null,null,null,null,null,null,null,null,null,null,null,null,null,null,null,null,null,null,null,null,null,null,null,null,null,null,null,null,null,null,null,null,null,null,null,null,null,null,null,null,null,null,null,null,null,null,null,null,null,null,null,null,null,null,null,null,null,null,null,null,null,null,null,null,null,null,null,null,null,null,null,null,null,null,null,null,null,null,null,null,null,null,null,null,"Rev",null,"Date"]
[]
[]
[]
[]
[]
[]
[]
[]
[]
[]
[]
[]
[]
[]
[]
[null,null,null,null,null,null,null,null,null,null,null,null,null,null,null,null,null,null,null,null,null,null,null,null,null,null,null,null,null,null,null,null,null,null,null,null,null,null,null,null,null,null,"Notes"]
[null,null,null,null,null,null,null,null,null,null,null,null,null,null,null,null,null,null,null,null,null,null,null,null,null,null,null,null,null,null,null,null,null,null,null,null,null,null,null,null,null,null,1,null,"Coordinate address during submittal review the the project specific hardware requirements and network architecture."]
[null,null,null,null,null,null,null,null,null,null,null,null,null,null,null,null,null,null,null,null,null,null,null,null,null,null,null,null,null,null,null,null,null,null,null,null,null,null,null,null,null,null,2,2,"Tune during the Cx process for stable operation under all operating conditions.",null,null,null,null,null,null,null,null,null,null,null,null,null,null,null,null,null,null,null,null,null,null,null,null,null,null,null,null,null,null,null,null,null,null,null,null,null,null,null,null,null,null,null,null,null,null,null,null,null,null,null,null,null,null,null,null,null,null,null,null,null,null,null,null,null,null,null,null,null,null,"HHW Hx Control"]
[null,null,null,null,null,null,null,null,null,null,null,null,null,null,null,null,null,null,null,null,null,null,null,null,null,null,null,null,null,null,null,null,null,null,null,null,null,null,null,null,null,null,3,3,"The design intent is for this to be a PI loop unless field experience indicates that the derivative function is required or desirable."]
[null,null,null,null,null,null,null,null,null,null,null,null,null,null,null,null,null,null,null,null,null,null,null,null,null,null,null,null,null,null,null,null,null,null,null,null,null,null,null,null,null,null,4,4,"Maintain the last command when the control process shuts down"]
[null,null,null,null,null,null,null,null,null,null,null,null,null,null,null,null,null,null,null,null,null,null,null,null,null,null,null,null,null,null,null,null,null,null,null,null,null,null,null,null,null,null,null,null,null,null,null,null,null,null,null,null,null,null,null,null,null,null,null,null,null,null,null,null,null,null,null,null,null,null,null,null,null,null,null,null,null,null,null,null,null,null,null,null,null,null,null,null,null,null,null,null,null,null,null,null,null,null,null,null,null,null,null,null,null,null,null,null,null,null,null,null,null,null,null,"TC-01"]
[]
[null,null,null,null,null,null,null,null,null,null,null,null,null,null,null,null,null,null,null,null,null,null,null,null,null,null,null,null,null,null,null,null,null,null,null,null,null,null,null,null,null,null,null,null,null,null,null,null,null,null,null,null,null,null,null,null,null,null,null,null,null,null,null,null,null,null,null,null,null,null,null,null,null,null,null,null,null,null,null,null,null,null,null,null,null,null,null,null,null,null,null,null,null,null,null,null,null,null,null,null,null,null,null,null,null,null,null,null,null,null,null,null,null,null,null,"OF 04 "]
[]
[]
[]
[null,"© 2017 Faciltiy Dynamics Engineering - All Rights Reserved"]
[]
[]
[null,null,null,null,null,null,null,null,null,null,null,null,null,null,null,null,null,null,null,null,null,null,null,null,null,null,null,null,null,null,null,null,null,null,null,null,null,"Symbol Definition File Location - ",null,null,null,null,null,null,null,null,null,null,null,null,null,{"$f":"HYPERLINK(\"D:\\FDE Tools\\Logic Diagrams\")","v":"D:\\FDE Tools\\Logic Diagrams"}]

{"sheet":"HW Hx Cntrl Enhanced ","index":5,"n_rows":74,"n_cols":119,"rows_kept":74,"cut":false,"hidden":false,"merged":[[43,115,43,116],[43,117,43,120],[1,115,26,116],[1,117,26,117],[1,118,26,120],[28,115,31,120],[32,115,36,120],[37,115,37,120],[38,115,38,120],[39,115,39,120],[40,115,40,120],[41,115,41,120],[42,115,42,120],[60,42,60,43],[60,44,60,113],[61,42,61,43],[61,44,61,113],[61,115,63,120],[62,42,62,43],[62,44,62,113],[63,42,63,43],[63,44,63,113],[64,115,65,120],[65,2,66,72],[66,115,67,120],[73,37,73,50],[73,51,73,69]]}
[null,null,null,null,null,null,null,null,null,null,null,null,null,null,null,null,null,null,null,null,null,null,null,null,null,null,null,null,null,null,null,null,null,null,null,null,null,null,null,null,null,null,null,null,null,null,null,{"$f":"-BS3:DI3","v":{"$error":"#VALUE!"}}]
[null,null,null,null,null,null,null,null,null,null,null,null,null,null,null,null,null,null,null,null,null,null,null,null,null,null,null,null,null,null,null,null,null,null,null,null,null,null,null,null,null,null,null,null,null,null,null,null,null,null,null,null,null,null,null,null,null,null,null,null,null,null,null,null,null,null,null,null,null,null,null,null,null,null,null,null,null,null,null,null,null,null,null,null,null,null,null,null,null,null,null,null,null,null,null,null,null,null,null,null,null,null,null,null,null,null,null,null,null,null,null,null,null,null,null,"Morgan, Wright, Jungermann and Kelley",null,"Architects, Master Planners","2700 Gumby Place | Suite 1872 | San Deigo, CA 92101\n619.608.1887"]
[]
[]
[null,null,null,null,null,null,null,null,null,null,null,null,null,null,null,null,null,null,null,null,null,null,null,null,null,null,null,null,null,null,null,null,null,null,null,null,null,null,null,null,null,null,null,null,null,null,null,null,null,null,null,null,"+"]
[]
[]
[]
[]
[]
[]
[]
[]
[]
[]
[]
[]
[]
[]
[]
[]
[]
[]
[null,null,null,null,null,null,null,null,null,null,null,null,null,null,null,null,null,null,null,null,null,null,null,null,null,null,null,null,null,null,null,null,null,null,null,null,null,null,"-"]
[]
[]
[]
[]
[null,null,null,null,null,null,null,null,null,null,null,null,null,null,null,null,null,null,null,null,null,null,null,null,null,null,null,null,null,null,null,null,null,null,null,null,null,null,null,null,null,null,null,null,null,null,null,null,null,null,null,null,null,null,null,null,null,null,null,null,null,null,null,null,null,null,null,null,null,null,null,null,null,null,null,null,null,null,null,null,null,null,null,null,null,null,null,null,null,null,null,null,null,null,null,null,null,null,null,null,null,null,null,null,null,null,null,null,null,null,null,null,null,null,null,"State\nOf\nAnxiety"]
[]
[]
[]
[null,null,null,null,null,null,null,null,null,null,null,null,null,null,null,null,null,null,null,null,null,null,null,null,null,null,null,null,null,null,null,null,null,null,null,null,null,null,null,null,null,null,null,null,null,null,null,null,null,null,null,null,null,null,null,null,null,null,null,null,null,null,null,null,null,null,null,null,null,null,null,null,null,null,null,null,null,null,null,null,null,null,null,null,null,null,null,null,null,null,null,null,null,null,null,null,null,null,null,null,null,null,null,null,null,null,null,null,null,null,null,null,null,null,null,"Bureaucratic Affairs Bldg. Control Upgrade"]
[]
[]
[]
[]
[null,null,null,null,null,null,null,null,null,null,null,null,null,null,null,null,null,null,null,null,null,null,null,null,null,null,null,null,null,null,null,null,null,null,null,null,null,null,null,null,null,null,null,null,null,null,null,null,null,null,null,null,null,null,null,null,null,null,null,null,null,null,null,null,null,null,null,null,null,null,null,null,null,null,null,null,null,null,null,null,null,null,null,null,null,null,null,null,null,null,null,null,null,null,null,null,null,null,null,null,null,null,null,null,null,null,null,null,null,null,null,null,null,null,null,"Issued for Bid:"]
[null,null,null,null,null,null,null,null,null,null,null,null,null,null,null,null,null,null,null,null,null,null,null,null,null,null,null,null,null,null,null,null,null,null,null,null,null,null,null,null,null,null,null,null,null,null,null,null,null,null,null,null,null,null,null,null,null,null,null,null,null,null,null,null,null,null,null,null,null,null,null,null,null,null,null,null,null,null,null,null,null,null,null,null,null,null,null,null,null,null,null,null,null,null,null,null,null,null,null,null,null,null,null,null,null,null,null,null,null,null,null,null,null,null,null,"2008-09-20"]
[null,null,null,null,null,null,null,null,null,null,null,null,null,null,null,null,null,null,null,null,null,null,null,null,null,null,null,null,null,null,null,null,null,null,null,null,null,null,null,null,null,null,null,null,null,null,null,null,null,null,null,null,null,null,null,null,null,null,null,null,null,null,null,null,null,null,null,null,null,null,null,null,null,null,null,null,null,null,null,null,null,null,null,null,null,null,null,null,null,null,null,null,null,null,null,null,null,null,null,null,null,null,null,null,null,null,null,null,null,null,null,null,null,null,null,"Drawn By:"]
[null,null,null,null,null,null,null,null,null,null,null,null,null,null,null,null,null,null,null,null,null,null,null,null,null,null,null,null,null,null,null,null,null,null,null,null,null,null,null,null,null,null,null,null,null,null,null,null,null,null,null,null,null,null,null,null,null,null,null,null,null,null,null,null,null,null,null,null,null,null,null,null,null,null,null,null,null,null,null,null,null,null,null,null,null,null,null,null,null,null,null,null,null,null,null,null,null,null,null,null,null,null,null,null,null,null,null,null,null,null,null,null,null,null,null,"M. Nyun 4-20-2008"]
[null,null,null,null,null,null,null,null,null,null,null,null,null,null,null,null,null,null,null,null,null,null,null,null,null,null,null,null,null,null,null,null,null,null,null,null,null,null,null,null,null,null,null,null,null,null,null,null,null,null,null,null,null,null,null,null,null,null,null,null,null,null,null,null,null,null,null,null,null,null,null,null,null,null,null,null,null,null,null,null,null,null,null,null,null,null,null,null,null,null,null,null,null,null,null,null,null,null,null,null,null,null,null,null,null,null,null,null,null,null,null,null,null,null,null,"Checked By:"]
[null,null,null,null,null,null,null,null,null,null,null,null,null,null,null,null,null,null,null,null,null,null,null,null,null,null,null,null,null,null,null,null,null,null,null,null,null,null,null,null,null,null,null,null,null,null,null,null,null,null,null,null,null,null,null,null,null,null,null,null,null,null,null,null,null,null,null,null,null,null,null,null,null,null,null,null,null,null,null,null,null,null,null,null,null,null,null,null,null,null,null,null,null,null,null,null,null,null,null,null,null,null,null,null,null,null,null,null,null,null,null,null,null,null,null,"M. Nature 7-20-2008"]
[null,null,null,null,null,null,null,null,null,null,null,null,null,null,null,null,null,null,null,null,null,null,null,null,null,null,null,null,null,null,null,null,null,null,null,null,null,null,null,null,null,null,null,null,null,null,null,null,null,null,null,null,null,null,null,null,null,null,null,null,null,null,null,null,null,null,null,null,null,null,null,null,null,null,null,null,null,null,null,null,null,null,null,null,null,null,null,null,null,null,null,null,null,null,null,null,null,null,null,null,null,null,null,null,null,null,null,null,null,null,null,null,null,null,null,"Rev",null,"Date"]
[]
[]
[]
[]
[]
[]
[]
[]
[]
[]
[]
[]
[]
[]
[]
[null,null,null,null,null,null,null,null,null,null,null,null,null,null,null,null,null,null,null,null,null,null,null,null,null,null,null,null,null,null,null,null,null,null,null,null,null,null,null,null,null,null,"Notes"]
[null,null,null,null,null,null,null,null,null,null,null,null,null,null,null,null,null,null,null,null,null,null,null,null,null,null,null,null,null,null,null,null,null,null,null,null,null,null,null,null,null,null,1,null,"Coordinate address during submittal review the the project specific hardware requirements and network architecture."]
[null,null,null,null,null,null,null,null,null,null,null,null,null,null,null,null,null,null,null,null,null,null,null,null,null,null,null,null,null,null,null,null,null,null,null,null,null,null,null,null,null,null,2,2,"Tune during the Cx process for stable operation under all operating conditions.",null,null,null,null,null,null,null,null,null,null,null,null,null,null,null,null,null,null,null,null,null,null,null,null,null,null,null,null,null,null,null,null,null,null,null,null,null,null,null,null,null,null,null,null,null,null,null,null,null,null,null,null,null,null,null,null,null,null,null,null,null,null,null,null,null,null,null,null,null,null,"HHW Hx Control"]
[null,null,null,null,null,null,null,null,null,null,null,null,null,null,null,null,null,null,null,null,null,null,null,null,null,null,null,null,null,null,null,null,null,null,null,null,null,null,null,null,null,null,3,3,"The design intent is for this to be a PI loop unless field experience indicates that the derivative function is required or desirable."]
[null,null,null,null,null,null,null,null,null,null,null,null,null,null,null,null,null,null,null,null,null,null,null,null,null,null,null,null,null,null,null,null,null,null,null,null,null,null,null,null,null,null,4,4,"Maintain the last command when the control process shuts down"]
[null,null,null,null,null,null,null,null,null,null,null,null,null,null,null,null,null,null,null,null,null,null,null,null,null,null,null,null,null,null,null,null,null,null,null,null,null,null,null,null,null,null,null,null,null,null,null,null,null,null,null,null,null,null,null,null,null,null,null,null,null,null,null,null,null,null,null,null,null,null,null,null,null,null,null,null,null,null,null,null,null,null,null,null,null,null,null,null,null,null,null,null,null,null,null,null,null,null,null,null,null,null,null,null,null,null,null,null,null,null,null,null,null,null,null,"TC-01"]
[null,null,"Bureaucratic Affairs Building Heating Hot Water System (BA-1-HWS) Hot Water Heat Exchanger Control"]
[null,null,null,null,null,null,null,null,null,null,null,null,null,null,null,null,null,null,null,null,null,null,null,null,null,null,null,null,null,null,null,null,null,null,null,null,null,null,null,null,null,null,null,null,null,null,null,null,null,null,null,null,null,null,null,null,null,null,null,null,null,null,null,null,null,null,null,null,null,null,null,null,null,null,null,null,null,null,null,null,null,null,null,null,null,null,null,null,null,null,null,null,null,null,null,null,null,null,null,null,null,null,null,null,null,null,null,null,null,null,null,null,null,null,null,"OF 04 "]
[]
[]
[]
[null,"© 2017 Faciltiy Dynamics Engineering - All Rights Reserved"]
[]
[]
[null,null,null,null,null,null,null,null,null,null,null,null,null,null,null,null,null,null,null,null,null,null,null,null,null,null,null,null,null,null,null,null,null,null,null,null,null,"Symbol Definition File Location - ",null,null,null,null,null,null,null,null,null,null,null,null,null,{"$f":"HYPERLINK(\"D:\\FDE Tools\\Logic Diagrams\")","v":"D:\\FDE Tools\\Logic Diagrams"}]

{"sheet":"FTR Cntrl Basic","index":6,"n_rows":74,"n_cols":119,"rows_kept":74,"cut":false,"hidden":false,"merged":[[42,115,42,120],[1,115,26,116],[1,117,26,117],[1,118,26,120],[2,2,3,33],[28,115,31,120],[32,115,36,120],[37,115,37,120],[38,115,38,120],[39,115,39,120],[40,115,40,120],[41,115,41,120],[29,2,29,28],[31,3,31,28],[43,115,43,116],[43,117,43,120],[60,42,60,43],[60,44,60,113],[61,42,61,43],[61,44,61,113],[61,115,63,120],[62,42,62,43],[62,44,62,113],[63,42,63,43],[63,44,63,113],[64,115,65,120],[66,42,66,111],[66,115,67,120],[73,37,73,50],[73,51,73,69]]}
[null,null,null,null,null,null,null,null,null,null,null,null,null,null,null,null,null,null,null,null,null,null,null,null,null,null,null,null,null,null,null,null,null,null,null,null,null,null,null,null,null,null,null,null,null,null,null,{"$f":"-BS3:DI3","v":{"$error":"#VALUE!"}}]
[null,null,null,null,null,null,null,null,null,null,null,null,null,null,null,null,null,null,null,null,null,null,null,null,null,null,null,null,null,null,null,null,null,null,null,null,null,null,null,null,null,null,null,null,null,null,null,null,null,null,null,null,null,null,null,null,null,null,null,null,null,null,null,null,null,null,null,null,null,null,null,null,null,null,null,null,null,null,null,null,null,null,null,null,null,null,null,null,null,null,null,null,null,null,null,null,null,null,null,null,null,null,null,null,null,null,null,null,null,null,null,null,null,null,null,"Morgan, Wright, Jungermann and Kelley",null,"Architects, Master Planners","2700 Gumby Place | Suite 1872 | San Deigo, CA 92101\n619.608.1887"]
[null,null,"FTR Zone Control"]
[]
[null,null,null,null,null,null,null,null,null,null,null,null,null,null,null,null,null,null,null,null,null,null,null,null,null,null,null,null,null,null,null,null,null,null,null,null,null,null,null,null,null,null,null,null,null,null,null,null,null,null,null,null,"+"]
[]
[]
[]
[]
[]
[]
[]
[]
[]
[]
[]
[]
[]
[]
[]
[]
[]
[]
[null,null,null,null,null,null,null,null,null,null,null,null,null,null,null,null,null,null,null,null,null,null,null,null,null,null,null,null,null,null,null,null,null,null,null,null,null,null,"-"]
[]
[]
[]
[]
[null,null,null,null,null,null,null,null,null,null,null,null,null,null,null,null,null,null,null,null,null,null,null,null,null,null,null,null,null,null,null,null,null,null,null,null,null,null,null,null,null,null,null,null,null,null,null,null,null,null,null,null,null,null,null,null,null,null,null,null,null,null,null,null,null,null,null,null,null,null,null,null,null,null,null,null,null,null,null,null,null,null,null,null,null,null,null,null,null,null,null,null,null,null,null,null,null,null,null,null,null,null,null,null,null,null,null,null,null,null,null,null,null,null,null,"State\nOf\nAnxiety"]
[null,null,"Typical of the Following Zones"]
[]
[null,null,null,"Division Chief (1st Fl. East)"]
[null,null,null,"Geometric Shape Development (1st Fl. South)",null,null,null,null,null,null,null,null,null,null,null,null,null,null,null,null,null,null,null,null,null,null,null,null,null,null,null,null,null,null,null,null,null,null,null,null,null,null,null,null,null,null,null,null,null,null,null,null,null,null,null,null,null,null,null,null,null,null,null,null,null,null,null,null,null,null,null,null,null,null,null,null,null,null,null,null,null,null,null,null,null,null,null,null,null,null,null,null,null,null,null,null,null,null,null,null,null,null,null,null,null,null,null,null,null,null,null,null,null,null,null,"Bureaucratic Affairs Bldg. Control Upgrade"]
[null,null,null,"Office of Non-offensive References (1st Fl. West)"]
[null,null,null,"Conference Room (2nd Fl. North)"]
[null,null,null,"Chief Bureaucrat (2nd Fl. East)"]
[null,null,null,"Department of Middle Management (2nd Floor South)"]
[null,null,null,"Director of Bureacratic Nightmare Resolution (2nd Fl. West)",null,null,null,null,null,null,null,null,null,null,null,null,null,null,null,null,null,null,null,null,null,null,null,null,null,null,null,null,null,null,null,null,null,null,null,null,null,null,null,null,null,null,null,null,null,null,null,null,null,null,null,null,null,null,null,null,null,null,null,null,null,null,null,null,null,null,null,null,null,null,null,null,null,null,null,null,null,null,null,null,null,null,null,null,null,null,null,null,null,null,null,null,null,null,null,null,null,null,null,null,null,null,null,null,null,null,null,null,null,null,null,"Issued for Bid:"]
[null,null,null,null,null,null,null,null,null,null,null,null,null,null,null,null,null,null,null,null,null,null,null,null,null,null,null,null,null,null,null,null,null,null,null,null,null,null,null,null,null,null,null,null,null,null,null,null,null,null,null,null,null,null,null,null,null,null,null,null,null,null,null,null,null,null,null,null,null,null,null,null,null,null,null,null,null,null,null,null,null,null,null,null,null,null,null,null,null,null,null,null,null,null,null,null,null,null,null,null,null,null,null,null,null,null,null,null,null,null,null,null,null,null,null,"2002-09-20"]
[null,null,null,null,null,null,null,null,null,null,null,null,null,null,null,null,null,null,null,null,null,null,null,null,null,null,null,null,null,null,null,null,null,null,null,null,null,null,null,null,null,null,null,null,null,null,null,null,null,null,null,null,null,null,null,null,null,null,null,null,null,null,null,null,null,null,null,null,null,null,null,null,null,null,null,null,null,null,null,null,null,null,null,null,null,null,null,null,null,null,null,null,null,null,null,null,null,null,null,null,null,null,null,null,null,null,null,null,null,null,null,null,null,null,null,"Drawn By:"]
[null,null,null,null,null,null,null,null,null,null,null,null,null,null,null,null,null,null,null,null,null,null,null,null,null,null,null,null,null,null,null,null,null,null,null,null,null,null,null,null,null,null,null,null,null,null,null,null,null,null,null,null,null,null,null,null,null,null,null,null,null,null,null,null,null,null,null,null,null,null,null,null,null,null,null,null,null,null,null,null,null,null,null,null,null,null,null,null,null,null,null,null,null,null,null,null,null,null,null,null,null,null,null,null,null,null,null,null,null,null,null,null,null,null,null,"M. Nyun 4-20-2002"]
[null,null,null,null,null,null,null,null,null,null,null,null,null,null,null,null,null,null,null,null,null,null,null,null,null,null,null,null,null,null,null,null,null,null,null,null,null,null,null,null,null,null,null,null,null,null,null,null,null,null,null,null,null,null,null,null,null,null,null,null,null,null,null,null,null,null,null,null,null,null,null,null,null,null,null,null,null,null,null,null,null,null,null,null,null,null,null,null,null,null,null,null,null,null,null,null,null,null,null,null,null,null,null,null,null,null,null,null,null,null,null,null,null,null,null,"Checked By:"]
[null,null,null,null,null,null,null,null,null,null,null,null,null,null,null,null,null,null,null,null,null,null,null,null,null,null,null,null,null,null,null,null,null,null,null,null,null,null,null,null,null,null,null,null,null,null,null,null,null,null,null,null,null,null,null,null,null,null,null,null,null,null,null,null,null,null,null,null,null,null,null,null,null,null,null,null,null,null,null,null,null,null,null,null,null,null,null,null,null,null,null,null,null,null,null,null,null,null,null,null,null,null,null,null,null,null,null,null,null,null,null,null,null,null,null,"M. Nature 7-20-2002"]
[null,null,null,null,null,null,null,null,null,null,null,null,null,null,null,null,null,null,null,null,null,null,null,null,null,null,null,null,null,null,null,null,null,null,null,null,null,null,null,null,null,null,null,null,null,null,null,null,null,null,null,null,null,null,null,null,null,null,null,null,null,null,null,null,null,null,null,null,null,null,null,null,null,null,null,null,null,null,null,null,null,null,null,null,null,null,null,null,null,null,null,null,null,null,null,null,null,null,null,null,null,null,null,null,null,null,null,null,null,null,null,null,null,null,null,"Rev",null,"Date"]
[]
[]
[]
[]
[]
[]
[]
[]
[]
[]
[]
[]
[]
[]
[]
[null,null,null,null,null,null,null,null,null,null,null,null,null,null,null,null,null,null,null,null,null,null,null,null,null,null,null,null,null,null,null,null,null,null,null,null,null,null,null,null,null,null,"Notes"]
[null,null,null,null,null,null,null,null,null,null,null,null,null,null,null,null,null,null,null,null,null,null,null,null,null,null,null,null,null,null,null,null,null,null,null,null,null,null,null,null,null,null,1,null,"Coordinate address during submittal review the the project specific hardware requirements and network architecture."]
[null,null,null,null,null,null,null,null,null,null,null,null,null,null,null,null,null,null,null,null,null,null,null,null,null,null,null,null,null,null,null,null,null,null,null,null,null,null,null,null,null,null,2,2,"Tune during the Cx process for stable operation under all operating conditions.",null,null,null,null,null,null,null,null,null,null,null,null,null,null,null,null,null,null,null,null,null,null,null,null,null,null,null,null,null,null,null,null,null,null,null,null,null,null,null,null,null,null,null,null,null,null,null,null,null,null,null,null,null,null,null,null,null,null,null,null,null,null,null,null,null,null,null,null,null,null,"HHW Hx Control"]
[null,null,null,null,null,null,null,null,null,null,null,null,null,null,null,null,null,null,null,null,null,null,null,null,null,null,null,null,null,null,null,null,null,null,null,null,null,null,null,null,null,null,3,3,"The design intent is for this to be a P only loop."]
[null,null,null,null,null,null,null,null,null,null,null,null,null,null,null,null,null,null,null,null,null,null,null,null,null,null,null,null,null,null,null,null,null,null,null,null,null,null,null,null,null,null,4,4,"Maintain the last command when the control process shuts down"]
[null,null,null,null,null,null,null,null,null,null,null,null,null,null,null,null,null,null,null,null,null,null,null,null,null,null,null,null,null,null,null,null,null,null,null,null,null,null,null,null,null,null,null,null,null,null,null,null,null,null,null,null,null,null,null,null,null,null,null,null,null,null,null,null,null,null,null,null,null,null,null,null,null,null,null,null,null,null,null,null,null,null,null,null,null,null,null,null,null,null,null,null,null,null,null,null,null,null,null,null,null,null,null,null,null,null,null,null,null,null,null,null,null,null,null,"TC-01"]
[]
[null,null,null,null,null,null,null,null,null,null,null,null,null,null,null,null,null,null,null,null,null,null,null,null,null,null,null,null,null,null,null,null,null,null,null,null,null,null,null,null,null,null,"Link to HHW System Diagram Tab",null,null,null,null,null,null,null,null,null,null,null,null,null,null,null,null,null,null,null,null,null,null,null,null,null,null,null,null,null,null,null,null,null,null,null,null,null,null,null,null,null,null,null,null,null,null,null,null,null,null,null,null,null,null,null,null,null,null,null,null,null,null,null,null,null,null,null,null,null,null,null,null,"OF 04 "]
[]
[]
[]
[null,"© 2017 Faciltiy Dynamics Engineering - All Rights Reserved"]
[]
[]
[null,null,null,null,null,null,null,null,null,null,null,null,null,null,null,null,null,null,null,null,null,null,null,null,null,null,null,null,null,null,null,null,null,null,null,null,null,"Symbol Definition File Location - ",null,null,null,null,null,null,null,null,null,null,null,null,null,{"$f":"HYPERLINK(\"D:\\FDE Tools\\Logic Diagrams\")","v":"D:\\FDE Tools\\Logic Diagrams"}]

{"sheet":"FTR Cntrl Enhanced","index":7,"n_rows":74,"n_cols":119,"rows_kept":74,"cut":false,"hidden":false,"merged":[[42,115,42,120],[1,115,26,116],[1,117,26,117],[1,118,26,120],[28,115,31,120],[32,115,36,120],[37,115,37,120],[38,115,38,120],[39,115,39,120],[40,115,40,120],[41,115,41,120],[43,115,43,116],[43,117,43,120],[61,115,63,120],[64,115,65,120],[73,39,73,52],[73,53,73,71],[66,115,67,120],[66,4,66,73],[17,3,17,28],[65,2,65,3],[65,4,65,73],[4,4,5,18],[15,2,15,28]]}
[]
[null,null,null,null,null,null,null,null,null,null,null,null,null,null,null,null,null,null,null,null,null,null,null,null,null,null,null,null,null,null,null,null,null,null,null,null,null,null,null,null,null,null,null,null,null,null,null,null,null,null,null,null,null,null,null,null,null,null,null,null,null,null,null,null,null,null,null,null,null,null,null,null,null,null,null,null,null,null,null,null,null,null,null,null,null,null,null,null,null,null,null,null,null,null,null,null,null,null,null,null,null,null,null,null,null,null,null,null,null,null,null,null,null,null,null,"Morgan, Wright, Jungermann and Kelley",null,"Architects, Master Planners","2700 Gumby Place | Suite 1872 | San Deigo, CA 92101\n619.608.1887"]
[]
[]
[null,null,null,null,"FTR Zone Control"]
[]
[]
[]
[]
[]
[]
[]
[]
[]
[]
[null,null,"Typical of the Following Zones"]
[]
[null,null,null,"Division Chief (1st Fl. East)"]
[null,null,null,"Geometric Shape Development (1st Fl. South)"]
[null,null,null,"Office of Non-offensive References (1st Fl. West)"]
[null,null,null,"Conference Room (2nd Fl. North)"]
[null,null,null,"Chief Bureaucrat (2nd Fl. East)"]
[null,null,null,"Department of Middle Management (2nd Floor South)"]
[null,null,null,"Director of Bureacratic Nightmare Resolution (2nd Fl. West)"]
[]
[]
[]
[]
[null,null,null,null,null,null,null,null,null,null,null,null,null,null,null,null,null,null,null,null,null,null,null,null,null,null,null,null,null,null,null,null,null,null,null,null,null,null,null,null,null,null,null,null,null,null,null,null,null,null,null,null,null,null,null,null,null,null,null,null,null,null,null,null,null,null,null,null,null,null,null,null,null,null,null,null,null,null,null,null,null,null,null,null,null,null,null,null,null,null,null,null,null,null,null,null,null,null,null,null,null,null,null,null,null,null,null,null,null,null,null,null,null,null,null,"State\nOf\nAnxiety"]
[]
[]
[]
[null,null,null,null,null,null,null,null,null,null,null,null,null,null,null,null,null,null,null,null,null,null,null,null,null,null,null,null,null,null,null,null,null,null,null,null,null,null,null,null,null,null,null,null,null,null,null,null,null,null,null,null,null,null,null,null,null,null,null,null,null,null,null,null,null,null,null,null,null,null,null,null,null,null,null,null,null,null,null,null,null,null,null,null,null,null,null,null,null,null,null,null,null,null,null,null,null,null,null,null,null,null,null,null,null,null,null,null,null,null,null,null,null,null,null,"Bureaucratic Affairs Bldg. Control Upgrade"]
[]
[]
[]
[]
[null,null,null,null,null,null,null,null,null,null,null,null,null,null,null,null,null,null,null,null,null,null,null,null,null,null,null,null,null,null,null,null,null,null,null,null,null,null,null,null,null,null,null,null,null,null,null,null,null,null,null,null,null,null,null,null,null,null,null,null,null,null,null,null,null,null,null,null,null,null,null,null,null,null,null,null,null,null,null,null,null,null,null,null,null,null,null,null,null,null,null,null,null,null,null,null,null,null,null,null,null,null,null,null,null,null,null,null,null,null,null,null,null,null,null,"Issued for Bid:"]
[null,null,null,null,null,null,null,null,null,null,null,null,null,null,null,null,null,null,null,null,null,null,null,null,null,null,null,null,null,null,null,null,null,null,null,null,null,null,null,null,null,null,null,null,null,null,null,null,null,null,null,null,null,null,null,null,null,null,null,null,null,null,null,null,null,null,null,null,null,null,null,null,null,null,null,null,null,null,null,null,null,null,null,null,null,null,null,null,null,null,null,null,null,null,null,null,null,null,null,null,null,null,null,null,null,null,null,null,null,null,null,null,null,null,null,"2002-09-20"]
[null,null,null,null,null,null,null,null,null,null,null,null,null,null,null,null,null,null,null,null,null,null,null,null,null,null,null,null,null,null,null,null,null,null,null,null,null,null,null,null,null,null,null,null,null,null,null,null,null,null,null,null,null,null,null,null,null,null,null,null,null,null,null,null,null,null,null,null,null,null,null,null,null,null,null,null,null,null,null,null,null,null,null,null,null,null,null,null,null,null,null,null,null,null,null,null,null,null,null,null,null,null,null,null,null,null,null,null,null,null,null,null,null,null,null,"Drawn By:"]
[null,null,null,null,null,null,null,null,null,null,null,null,null,null,null,null,null,null,null,null,null,null,null,null,null,null,null,null,null,null,null,null,null,null,null,null,null,null,null,null,null,null,null,null,null,null,null,null,null,null,null,null,null,null,null,null,null,null,null,null,null,null,null,null,null,null,null,null,null,null,null,null,null,null,null,null,null,null,null,null,null,null,null,null,null,null,null,null,null,null,null,null,null,null,null,null,null,null,null,null,null,null,null,null,null,null,null,null,null,null,null,null,null,null,null,"M. Nyun 4-20-2002"]
[null,null,null,null,null,null,null,null,null,null,null,null,null,null,null,null,null,null,null,null,null,null,null,null,null,null,null,null,null,null,null,null,null,null,null,null,null,null,null,null,null,null,null,null,null,null,null,null,null,null,null,null,null,null,null,null,null,null,null,null,null,null,null,null,null,null,null,null,null,null,null,null,null,null,null,null,null,null,null,null,null,null,null,null,null,null,null,null,null,null,null,null,null,null,null,null,null,null,null,null,null,null,null,null,null,null,null,null,null,null,null,null,null,null,null,"Checked By:"]
[null,null,null,null,null,null,null,null,null,null,null,null,null,null,null,null,null,null,null,null,null,null,null,null,null,null,null,null,null,null,null,null,null,null,null,null,null,null,null,null,null,null,null,null,null,null,null,null,null,null,null,null,null,null,null,null,null,null,null,null,null,null,null,null,null,null,null,null,null,null,null,null,null,null,null,null,null,null,null,null,null,null,null,null,null,null,null,null,null,null,null,null,null,null,null,null,null,null,null,null,null,null,null,null,null,null,null,null,null,null,null,null,null,null,null,"M. Nature 7-20-2002"]
[null,null,null,null,null,null,null,null,null,null,null,null,null,null,null,null,null,null,null,null,null,null,null,null,null,null,null,null,null,null,null,null,null,null,null,null,null,null,null,null,null,null,null,null,null,null,null,null,null,null,null,null,null,null,null,null,null,null,null,null,null,null,null,null,null,null,null,null,null,null,null,null,null,null,null,null,null,null,null,null,null,null,null,null,null,null,null,null,null,null,null,null,null,null,null,null,null,null,null,null,null,null,null,null,null,null,null,null,null,null,null,null,null,null,null,"Rev",null,"Date"]
[]
[]
[]
[]
[]
[]
[]
[]
[]
[]
[]
[]
[]
[]
[]
[]
[]
[null,null,null,null,null,null,null,null,null,null,null,null,null,null,null,null,null,null,null,null,null,null,null,null,null,null,null,null,null,null,null,null,null,null,null,null,null,null,null,null,null,null,null,null,null,null,null,null,null,null,null,null,null,null,null,null,null,null,null,null,null,null,null,null,null,null,null,null,null,null,null,null,null,null,null,null,null,null,null,null,null,null,null,null,null,null,null,null,null,null,null,null,null,null,null,null,null,null,null,null,null,null,null,null,null,null,null,null,null,null,null,null,null,null,null,"FTR Zone Control"]
[]
[]
[null,null,"Notes",null,null,null,null,null,null,null,null,null,null,null,null,null,null,null,null,null,null,null,null,null,null,null,null,null,null,null,null,null,null,null,null,null,null,null,null,null,null,null,null,null,null,null,null,null,null,null,null,null,null,null,null,null,null,null,null,null,null,null,null,null,null,null,null,null,null,null,null,null,null,null,null,null,null,null,null,null,null,null,null,null,null,null,null,null,null,null,null,null,null,null,null,null,null,null,null,null,null,null,null,null,null,null,null,null,null,null,null,null,null,null,null,"TC-03"]
[null,null,1,null,"Coordinate address during submittal review the the project specific hardware requirements and network architecture."]
[null,null,null,null,"Link to Department of Bureaucratic Affairs Building Information",null,null,null,null,null,null,null,null,null,null,null,null,null,null,null,null,null,null,null,null,null,null,null,null,null,null,null,null,null,null,null,null,null,null,null,null,null,null,null,null,null,null,null,null,null,null,null,null,null,null,null,null,null,null,null,null,null,null,null,null,null,null,null,null,null,null,null,null,null,null,null,null,null,null,null,null,null,null,null,null,null,null,null,null,null,null,null,null,null,null,null,null,null,null,null,null,null,null,null,null,null,null,null,null,null,null,null,null,null,null,"OF 04"]
[]
[]
[]
[null,"© 2017 Faciltiy Dynamics Engineering - All Rights Reserved"]
[]
[]
[null,null,null,null,null,null,null,null,null,null,null,null,null,null,null,null,null,null,null,null,null,null,null,null,null,null,null,null,null,null,null,null,null,null,null,null,null,null,null,"Symbol Definition File Location - ",null,null,null,null,null,null,null,null,null,null,null,null,null,{"$f":"HYPERLINK(\"D:\\FDE Tools\\Logic Diagrams\")","v":"D:\\FDE Tools\\Logic Diagrams"}]

{"sheet":"Bldg Occ-UnOcc","index":8,"n_rows":74,"n_cols":119,"rows_kept":74,"cut":false,"hidden":false,"merged":[[4,4,5,35],[28,115,31,120],[32,115,36,120],[37,115,37,120],[38,115,38,120],[73,37,73,50],[73,51,73,69],[42,115,42,120],[1,115,26,116],[1,117,26,117],[1,118,26,120],[39,115,39,120],[40,115,40,120],[41,115,41,120],[66,115,67,120],[65,41,65,42],[66,28,66,97],[43,115,43,116],[43,117,43,120],[61,115,63,120],[64,115,65,120]]}
[]
[null,null,null,null,null,null,null,null,null,null,null,null,null,null,null,null,null,null,null,null,null,null,null,null,null,null,null,null,null,null,null,null,null,null,null,null,null,null,null,null,null,null,null,null,null,null,null,null,null,null,null,null,null,null,null,null,null,null,null,null,null,null,null,null,null,null,null,null,null,null,null,null,null,null,null,null,null,null,null,null,null,null,null,null,null,null,null,null,null,null,null,null,null,null,null,null,null,null,null,null,null,null,null,null,null,null,null,null,null,null,null,null,null,null,null,"Morgan, Wright, Jungermann and Kelley",null,"Architects, Master Planners","2700 Gumby Place | Suite 1872 | San Deigo, CA 92101\n619.608.1887"]
[]
[]
[null,null,null,null,"Building Occupancy Control"]
[]
[]
[]
[]
[]
[]
[]
[]
[]
[]
[]
[]
[]
[]
[]
[]
[]
[]
[]
[]
[]
[]
[]
[null,null,null,null,null,null,null,null,null,null,null,null,null,null,null,null,null,null,null,null,null,null,null,null,null,null,null,null,null,null,null,null,null,null,null,null,null,null,null,null,null,null,null,null,null,null,null,null,null,null,null,null,null,null,null,null,null,null,null,null,null,null,null,null,null,null,null,null,null,null,null,null,null,null,null,null,null,null,null,null,null,null,null,null,null,null,null,null,null,null,null,null,null,null,null,null,null,null,null,null,null,null,null,null,null,null,null,null,null,null,null,null,null,null,null,"State\nOf\nAnxiety"]
[]
[]
[]
[null,null,null,null,null,null,null,null,null,null,null,null,null,null,null,null,null,null,null,null,null,null,null,null,null,null,null,null,null,null,null,null,null,null,null,null,null,null,null,null,null,null,null,null,null,null,null,null,null,null,null,null,null,null,null,null,null,null,null,null,null,null,null,null,null,null,null,null,null,null,null,null,null,null,null,null,null,null,null,null,null,null,null,null,null,null,null,null,null,null,null,null,null,null,null,null,null,null,null,null,null,null,null,null,null,null,null,null,null,null,null,null,null,null,null,"Bureaucratic Affairs Bldg. Control Upgrade"]
[]
[]
[]
[]
[null,null,null,null,null,null,null,null,null,null,null,null,null,null,null,null,null,null,null,null,null,null,null,null,null,null,null,null,null,null,null,null,null,null,null,null,null,null,null,null,null,null,null,null,null,null,null,null,null,null,null,null,null,null,null,null,null,null,null,null,null,null,null,null,null,null,null,null,null,null,null,null,null,null,null,null,null,null,null,null,null,null,null,null,null,null,null,null,null,null,null,null,null,null,null,null,null,null,null,null,null,null,null,null,null,null,null,null,null,null,null,null,null,null,null,"Issued for Bid:"]
[null,null,null,null,null,null,null,null,null,null,null,null,null,null,null,null,null,null,null,null,null,null,null,null,null,null,null,null,null,null,null,null,null,null,null,null,null,null,null,null,null,null,null,null,null,null,null,null,null,null,null,null,null,null,null,null,null,null,null,null,null,null,null,null,null,null,null,null,null,null,null,null,null,null,null,null,null,null,null,null,null,null,null,null,null,null,null,null,null,null,null,null,null,null,null,null,null,null,null,null,null,null,null,null,null,null,null,null,null,null,null,null,null,null,null,"2002-09-20"]
[null,null,null,null,null,null,null,null,null,null,null,null,null,null,null,null,null,null,null,null,null,null,null,null,null,null,null,null,null,null,null,null,null,null,null,null,null,null,null,null,null,null,null,null,null,null,null,null,null,null,null,null,null,null,null,null,null,null,null,null,null,null,null,null,null,null,null,null,null,null,null,null,null,null,null,null,null,null,null,null,null,null,null,null,null,null,null,null,null,null,null,null,null,null,null,null,null,null,null,null,null,null,null,null,null,null,null,null,null,null,null,null,null,null,null,"Drawn By:"]
[null,null,null,null,null,null,null,null,null,null,null,null,null,null,null,null,null,null,null,null,null,null,null,null,null,null,null,null,null,null,null,null,null,null,null,null,null,null,null,null,null,null,null,null,null,null,null,null,null,null,null,null,null,null,null,null,null,null,null,null,null,null,null,null,null,null,null,null,null,null,null,null,null,null,null,null,null,null,null,null,null,null,null,null,null,null,null,null,null,null,null,null,null,null,null,null,null,null,null,null,null,null,null,null,null,null,null,null,null,null,null,null,null,null,null,"M. Nyun 4-20-2002"]
[null,null,null,null,null,null,null,null,null,null,null,null,null,null,null,null,null,null,null,null,null,null,null,null,null,null,null,null,null,null,null,null,null,null,null,null,null,null,null,null,null,null,null,null,null,null,null,null,null,null,null,null,null,null,null,null,null,null,null,null,null,null,null,null,null,null,null,null,null,null,null,null,null,null,null,null,null,null,null,null,null,null,null,null,null,null,null,null,null,null,null,null,null,null,null,null,null,null,null,null,null,null,null,null,null,null,null,null,null,null,null,null,null,null,null,"Checked By:"]
[null,null,null,null,null,null,null,null,null,null,null,null,null,null,null,null,null,null,null,null,null,null,null,null,null,null,null,null,null,null,null,null,null,null,null,null,null,null,null,null,null,null,null,null,null,null,null,null,null,null,null,null,null,null,null,null,null,null,null,null,null,null,null,null,null,null,null,null,null,null,null,null,null,null,null,null,null,null,null,null,null,null,null,null,null,null,null,null,null,null,null,null,null,null,null,null,null,null,null,null,null,null,null,null,null,null,null,null,null,null,null,null,null,null,null,"M. Nature 7-20-2002"]
[null,null,null,null,null,null,null,null,null,null,null,null,null,null,null,null,null,null,null,null,null,null,null,null,null,null,null,null,null,null,null,null,null,null,null,null,null,null,null,null,null,null,null,null,null,null,null,null,null,null,null,null,null,null,null,null,null,null,null,null,null,null,null,null,null,null,null,null,null,null,null,null,null,null,null,null,null,null,null,null,null,null,null,null,null,null,null,null,null,null,null,null,null,null,null,null,null,null,null,null,null,null,null,null,null,null,null,null,null,null,null,null,null,null,null,"Rev",null,"Date"]
[]
[]
[]
[]
[]
[]
[]
[]
[]
[]
[]
[]
[]
[]
[]
[]
[]
[null,null,null,null,null,null,null,null,null,null,null,null,null,null,null,null,null,null,null,null,null,null,null,null,null,null,null,null,null,null,null,null,null,null,null,null,null,null,null,null,null,null,null,null,null,null,null,null,null,null,null,null,null,null,null,null,null,null,null,null,null,null,null,null,null,null,null,null,null,null,null,null,null,null,null,null,null,null,null,null,null,null,null,null,null,null,null,null,null,null,null,null,null,null,null,null,null,null,null,null,null,null,null,null,null,null,null,null,null,null,null,null,null,null,null,"Building Occ./ Unocc."]
[]
[]
[null,null,null,null,null,null,null,null,null,null,null,null,null,null,null,null,null,null,null,null,null,null,null,null,null,null,null,null,null,null,null,null,null,null,null,null,null,null,null,null,null,null,null,null,null,null,null,null,null,null,null,null,null,null,null,null,null,null,null,null,null,null,null,null,null,null,null,null,null,null,null,null,null,null,null,null,null,null,null,null,null,null,null,null,null,null,null,null,null,null,null,null,null,null,null,null,null,null,null,null,null,null,null,null,null,null,null,null,null,null,null,null,null,null,null,"TC-02"]
[null,null,null,null,null,null,null,null,null,null,null,null,null,null,null,null,null,null,null,null,null,null,null,null,null,null,null,null,null,null,null,null,null,null,null,null,null,null,null,null,null,null,4]
[null,null,null,null,null,null,null,null,null,null,null,null,null,null,null,null,null,null,null,null,null,null,null,null,null,null,null,null,"Link to Department of Bureaucratic Affairs Building Information",null,null,null,null,null,null,null,null,null,null,null,null,null,null,null,null,null,null,null,null,null,null,null,null,null,null,null,null,null,null,null,null,null,null,null,null,null,null,null,null,null,null,null,null,null,null,null,null,null,null,null,null,null,null,null,null,null,null,null,null,null,null,null,null,null,null,null,null,null,null,null,null,null,null,null,null,null,null,null,null,null,null,null,null,null,null,"OF 04"]
[]
[]
[]
[null,"© 2017 Faciltiy Dynamics Engineering - All Rights Reserved"]
[]
[]
[null,null,null,null,null,null,null,null,null,null,null,null,null,null,null,null,null,null,null,null,null,null,null,null,null,null,null,null,null,null,null,null,null,null,null,null,null,"Symbol Definition File Location - ",null,null,null,null,null,null,null,null,null,null,null,null,null,{"$f":"HYPERLINK(\"D:\\FDE Tools\\Logic Diagrams\")","v":"D:\\FDE Tools\\Logic Diagrams"}]

{"sheet":"HW Pump SS","index":9,"n_rows":73,"n_cols":241,"rows_kept":73,"cut":false,"hidden":false,"merged":[[42,237,42,242],[28,237,31,242],[32,237,36,242],[1,237,26,238],[1,239,26,239],[1,240,26,242],[37,237,37,242],[38,237,38,242],[39,237,39,242],[40,237,40,242],[41,237,41,242],[66,237,67,242],[61,237,63,242],[64,237,65,242],[72,39,72,52],[72,53,72,71],[66,115,67,120],[64,115,65,120],[61,115,63,120],[57,26,57,95],[60,26,60,27],[60,28,61,113],[62,26,62,27],[62,28,63,113],[40,115,40,120],[1,115,26,116],[1,117,26,117],[1,118,26,120],[55,26,56,57],[28,115,31,120],[32,115,36,120],[37,115,37,120],[38,115,38,120],[39,115,39,120],[41,115,41,120],[42,115,42,120],[43,115,43,116],[43,117,43,120]]}
[]
[null,null,null,null,null,null,null,null,null,null,null,null,null,null,null,null,null,null,null,null,null,null,null,null,null,null,null,null,null,null,null,null,null,null,null,null,null,null,null,null,null,null,null,null,null,null,null,null,null,null,null,null,null,null,null,null,null,null,null,null,null,null,null,null,null,null,null,null,null,null,null,null,null,null,null,null,null,null,null,null,null,null,null,null,null,null,null,null,null,null,null,null,null,null,null,null,null,null,null,null,null,null,null,null,null,null,null,null,null,null,null,null,null,null,null,"Morgan, Wright, Jungermann and Kelley",null,"Architects, Master Planners","2700 Gumby Place | Suite 1872 | San Deigo, CA 92101\n619.608.1887",null,null,null,null,null,null,null,null,null,null,null,null,null,null,null,null,null,null,null,null,null,null,null,null,null,null,null,null,null,null,null,null,null,null,null,null,null,null,null,null,null,null,null,null,null,null,null,null,null,null,null,null,null,null,null,null,null,null,null,null,null,null,null,null,null,null,null,null,null,null,null,null,null,null,null,null,null,null,null,null,null,null,null,null,null,null,null,null,null,null,null,null,null,null,null,null,null,null,null,null,null,null,null,null,null,null,null,null,null,null,null,null,null,null,null,null,null,null,"Morgan, Wright, Jungermann and Kelley",null,"Architects, Master Planners","2700 Gumby Place | Suite 1872 | San Deigo, CA 92101\n619.608.1887"]
[]
[]
[]
[]
[]
[]
[]
[]
[]
[]
[]
[]
[]
[]
[]
[]
[]
[]
[]
[]
[]
[]
[]
[]
[]
[]
[null,null,null,null,null,null,null,null,null,null,null,null,null,null,null,null,null,null,null,null,null,null,null,null,null,null,null,null,null,null,null,null,null,null,null,null,null,null,null,null,null,null,null,null,null,null,null,null,null,null,null,null,null,null,null,null,null,null,null,null,null,null,null,null,null,null,null,null,null,null,null,null,null,null,null,null,null,null,null,null,null,null,null,null,null,null,null,null,null,null,null,null,null,null,null,null,null,null,null,null,null,null,null,null,null,null,null,null,null,null,null,null,null,null,null,"State\nOf\nAnxiety",null,null,null,null,null,null,null,null,null,null,null,null,null,null,null,null,null,null,null,null,null,null,null,null,null,null,null,null,null,null,null,null,null,null,null,null,null,null,null,null,null,null,null,null,null,null,null,null,null,null,null,null,null,null,null,null,null,null,null,null,null,null,null,null,null,null,null,null,null,null,null,null,null,null,null,null,null,null,null,null,null,null,null,null,null,null,null,null,null,null,null,null,null,null,null,null,null,null,null,null,null,null,null,null,null,null,null,null,null,null,null,null,null,null,null,null,null,null,null,null,null,"State\nOf\nAnxiety"]
[]
[]
[]
[null,null,null,null,null,null,null,null,null,null,null,null,null,null,null,null,null,null,null,null,null,null,null,null,null,null,null,null,null,null,null,null,null,null,null,null,null,null,null,null,null,null,null,null,null,null,null,null,null,null,null,null,null,null,null,null,null,null,null,null,null,null,null,null,null,null,null,null,null,null,null,null,null,null,null,null,null,null,null,null,null,null,null,null,null,null,null,null,null,null,null,null,null,null,null,null,null,null,null,null,null,null,null,null,null,null,null,null,null,null,null,null,null,null,null,"Bureaucratic Affairs Bldg. Control Upgrade",null,null,null,null,null,null,null,null,null,null,null,null,null,null,null,null,null,null,null,null,null,null,null,null,null,null,null,null,null,null,null,null,null,null,null,null,null,null,null,null,null,null,null,null,null,null,null,null,null,null,null,null,null,null,null,null,null,null,null,null,null,null,null,null,null,null,null,null,null,null,null,null,null,null,null,null,null,null,null,null,null,null,null,null,null,null,null,null,null,null,null,null,null,null,null,null,null,null,null,null,null,null,null,null,null,null,null,null,null,null,null,null,null,null,null,null,null,null,null,null,null,"Bureaucratic Affairs Bldg. Control Upgrade"]
[]
[]
[]
[]
[null,null,null,null,null,null,null,null,null,null,null,null,null,null,null,null,null,null,null,null,null,null,null,null,null,null,null,null,null,null,null,null,null,null,null,null,null,null,null,null,null,null,null,null,null,null,null,null,null,null,null,null,null,null,null,null,null,null,null,null,null,null,null,null,null,null,null,null,null,null,null,null,null,null,null,null,null,null,null,null,null,null,null,null,null,null,null,null,null,null,null,null,null,null,null,null,null,null,null,null,null,null,null,null,null,null,null,null,null,null,null,null,null,null,null,"Issued for Bid:",null,null,null,null,null,null,null,null,null,null,null,null,null,null,null,null,null,null,null,null,null,null,null,null,null,null,null,null,null,null,null,null,null,null,null,null,null,null,null,null,null,null,null,null,null,null,null,null,null,null,null,null,null,null,null,null,null,null,null,null,null,null,null,null,null,null,null,null,null,null,null,null,null,null,null,null,null,null,null,null,null,null,null,null,null,null,null,null,null,null,null,null,null,null,null,null,null,null,null,null,null,null,null,null,null,null,null,null,null,null,null,null,null,null,null,null,null,null,null,null,null,"Issued for Bid:"]
[null,null,null,null,null,null,null,null,null,null,null,null,null,null,null,null,null,null,null,null,null,null,null,null,null,null,null,null,null,null,null,null,null,null,null,null,null,null,null,null,null,null,null,null,null,null,null,null,null,null,null,null,null,null,null,null,null,null,null,null,null,null,null,null,null,null,null,null,null,null,null,null,null,null,null,null,null,null,null,null,null,null,null,null,null,null,null,null,null,null,null,null,null,null,null,null,null,null,null,null,null,null,null,null,null,null,null,null,null,null,null,null,null,null,null,"2002-09-20",null,null,null,null,null,null,null,null,null,null,null,null,null,null,null,null,null,null,null,null,null,null,null,null,null,null,null,null,null,null,null,null,null,null,null,null,null,null,null,null,null,null,null,null,null,null,null,null,null,null,null,null,null,null,null,null,null,null,null,null,null,null,null,null,null,null,null,null,null,null,null,null,null,null,null,null,null,null,null,null,null,null,null,null,null,null,null,null,null,null,null,null,null,null,null,null,null,null,null,null,null,null,null,null,null,null,null,null,null,null,null,null,null,null,null,null,null,null,null,null,null,"2002-09-20"]
[null,null,null,null,null,null,null,null,null,null,null,null,null,null,null,null,null,null,null,null,null,null,null,null,null,null,null,null,null,null,null,null,null,null,null,null,null,null,null,null,null,null,null,null,null,null,null,null,null,null,null,null,null,null,null,null,null,null,null,null,null,null,null,null,null,null,null,null,null,null,null,null,null,null,null,null,null,null,null,null,null,null,null,null,null,null,null,null,null,null,null,null,null,null,null,null,null,null,null,null,null,null,null,null,null,null,null,null,null,null,null,null,null,null,null,"Drawn By:",null,null,null,null,null,null,null,null,null,null,null,null,null,null,null,null,null,null,null,null,null,null,null,null,null,null,null,null,null,null,null,null,null,null,null,null,null,null,null,null,null,null,null,null,null,null,null,null,null,null,null,null,null,null,null,null,null,null,null,null,null,null,null,null,null,null,null,null,null,null,null,null,null,null,null,null,null,null,null,null,null,null,null,null,null,null,null,null,null,null,null,null,null,null,null,null,null,null,null,null,null,null,null,null,null,null,null,null,null,null,null,null,null,null,null,null,null,null,null,null,null,"Drawn By:"]
[null,null,null,null,null,null,null,null,null,null,null,null,null,null,null,null,null,null,null,null,null,null,null,null,null,null,null,null,null,null,null,null,null,null,null,null,null,null,null,null,null,null,null,null,null,null,null,null,null,null,null,null,null,null,null,null,null,null,null,null,null,null,null,null,null,null,null,null,null,null,null,null,null,null,null,null,null,null,null,null,null,null,null,null,null,null,null,null,null,null,null,null,null,null,null,null,null,null,null,null,null,null,null,null,null,null,null,null,null,null,null,null,null,null,null,"M. Nyun 4-20-2002",null,null,null,null,null,null,null,null,null,null,null,null,null,null,null,null,null,null,null,null,null,null,null,null,null,null,null,null,null,null,null,null,null,null,null,null,null,null,null,null,null,null,null,null,null,null,null,null,null,null,null,null,null,null,null,null,null,null,null,null,null,null,null,null,null,null,null,null,null,null,null,null,null,null,null,null,null,null,null,null,null,null,null,null,null,null,null,null,null,null,null,null,null,null,null,null,null,null,null,null,null,null,null,null,null,null,null,null,null,null,null,null,null,null,null,null,null,null,null,null,null,"M. Nyun 4-20-2002"]
[null,null,null,null,null,null,null,null,null,null,null,null,null,null,null,null,null,null,null,null,null,null,null,null,null,null,null,null,null,null,null,null,null,null,null,null,null,null,null,null,null,null,null,null,null,null,null,null,null,null,null,null,null,null,null,null,null,null,null,null,null,null,null,null,null,null,null,null,null,null,null,null,null,null,null,null,null,null,null,null,null,null,null,null,null,null,null,null,null,null,null,null,null,null,null,null,null,null,null,null,null,null,null,null,null,null,null,null,null,null,null,null,null,null,null,"Checked By:",null,null,null,null,null,null,null,null,null,null,null,null,null,null,null,null,null,null,null,null,null,null,null,null,null,null,null,null,null,null,null,null,null,null,null,null,null,null,null,null,null,null,null,null,null,null,null,null,null,null,null,null,null,null,null,null,null,null,null,null,null,null,null,null,null,null,null,null,null,null,null,null,null,null,null,null,null,null,null,null,null,null,null,null,null,null,null,null,null,null,null,null,null,null,null,null,null,null,null,null,null,null,null,null,null,null,null,null,null,null,null,null,null,null,null,null,null,null,null,null,null,"Checked By:"]
[null,null,null,null,null,null,null,null,null,null,null,null,null,null,null,null,null,null,null,null,null,null,null,null,null,null,null,null,null,null,null,null,null,null,null,null,null,null,null,null,null,null,null,null,null,null,null,null,null,null,null,null,null,null,null,null,null,null,null,null,null,null,null,null,null,null,null,null,null,null,null,null,null,null,null,null,null,null,null,null,null,null,null,null,null,null,null,null,null,null,null,null,null,null,null,null,null,null,null,null,null,null,null,null,null,null,null,null,null,null,null,null,null,null,null,"M. Nature 7-20-2002",null,null,null,null,null,null,null,null,null,null,null,null,null,null,null,null,null,null,null,null,null,null,null,null,null,null,null,null,null,null,null,null,null,null,null,null,null,null,null,null,null,null,null,null,null,null,null,null,null,null,null,null,null,null,null,null,null,null,null,null,null,null,null,null,null,null,null,null,null,null,null,null,null,null,null,null,null,null,null,null,null,null,null,null,null,null,null,null,null,null,null,null,null,null,null,null,null,null,null,null,null,null,null,null,null,null,null,null,null,null,null,null,null,null,null,null,null,null,null,null,null,"M. Nature 7-20-2002"]
[null,null,null,null,null,null,null,null,null,null,null,null,null,null,null,null,null,null,null,null,null,null,null,null,null,null,null,null,null,null,null,null,null,null,null,null,null,null,null,null,null,null,null,null,null,null,null,null,null,null,null,null,null,null,null,null,null,null,null,null,null,null,null,null,null,null,null,null,null,null,null,null,null,null,null,null,null,null,null,null,null,null,null,null,null,null,null,null,null,null,null,null,null,null,null,null,null,null,null,null,null,null,null,null,null,null,null,null,null,null,null,null,null,null,null,"Rev",null,"Date"]
[]
[]
[]
[]
[]
[]
[]
[]
[]
[]
[]
[null,null,null,null,null,null,null,null,null,null,null,null,null,null,null,null,null,null,null,null,null,null,null,null,null,null,"Hot Water Pump Control (Continued on TC-05)"]
[]
[null,null,null,null,null,null,null,null,null,null,null,null,null,null,null,null,null,null,null,null,null,null,null,null,null,null,"Link to Department of Bureaucratic Affairs Building Information"]
[]
[null,null,null,null,null,null,null,null,null,null,null,null,null,null,null,null,null,null,null,null,null,null,null,null,null,null,"Notes"]
[null,null,null,null,null,null,null,null,null,null,null,null,null,null,null,null,null,null,null,null,null,null,null,null,null,null,1,null,"Coordinate point address during the submittal process."]
[null,null,null,null,null,null,null,null,null,null,null,null,null,null,null,null,null,null,null,null,null,null,null,null,null,null,null,null,null,null,null,null,null,null,null,null,null,null,null,null,null,null,null,null,null,null,null,null,null,null,null,null,null,null,null,null,null,null,null,null,null,null,null,null,null,null,null,null,null,null,null,null,null,null,null,null,null,null,null,null,null,null,null,null,null,null,null,null,null,null,null,null,null,null,null,null,null,null,null,null,null,null,null,null,null,null,null,null,null,null,null,null,null,null,null,"HW Pump Start/Stop",null,null,null,null,null,null,null,null,null,null,null,null,null,null,null,null,null,null,null,null,null,null,null,null,null,null,null,null,null,null,null,null,null,null,null,null,null,null,null,null,null,null,null,null,null,null,null,null,null,null,null,null,null,null,null,null,null,null,null,null,null,null,null,null,null,null,null,null,null,null,null,null,null,null,null,null,null,null,null,null,null,null,null,null,null,null,null,null,null,null,null,null,null,null,null,null,null,null,null,null,null,null,null,null,null,null,null,null,null,null,null,null,null,null,null,null,null,null,null,null,null,"HW Pump Start/Stop"]
[null,null,null,null,null,null,null,null,null,null,null,null,null,null,null,null,null,null,null,null,null,null,null,null,null,null,2,null,"Set by the electrical contracter per the requirements of the National Electric Code."]
[]
[null,null,null,null,null,null,null,null,null,null,null,null,null,null,null,null,null,null,null,null,null,null,null,null,null,null,null,null,null,null,null,null,null,null,null,null,null,null,null,null,null,null,null,null,null,null,null,null,null,null,null,null,null,null,null,null,null,null,null,null,null,null,null,null,null,null,null,null,null,null,null,null,null,null,null,null,null,null,null,null,null,null,null,null,null,null,null,null,null,null,null,null,null,null,null,null,null,null,null,null,null,null,null,null,null,null,null,null,null,null,null,null,null,null,null,"TC-04",null,null,null,null,null,null,null,null,null,null,null,null,null,null,null,null,null,null,null,null,null,null,null,null,null,null,null,null,null,null,null,null,null,null,null,null,null,null,null,null,null,null,null,null,null,null,null,null,null,null,null,null,null,null,null,null,null,null,null,null,null,null,null,null,null,null,null,null,null,null,null,null,null,null,null,null,null,null,null,null,null,null,null,null,null,null,null,null,null,null,null,null,null,null,null,null,null,null,null,null,null,null,null,null,null,null,null,null,null,null,null,null,null,null,null,null,null,null,null,null,null,"TC-05"]
[]
[null,null,null,null,null,null,null,null,null,null,null,null,null,null,null,null,null,null,null,null,null,null,null,null,null,null,null,null,null,null,null,null,null,null,null,null,null,null,null,null,null,null,null,null,null,null,null,null,null,null,null,null,null,null,null,null,null,null,null,null,null,null,null,null,null,null,null,null,null,null,null,null,null,null,null,null,null,null,null,null,null,null,null,null,null,null,null,null,null,null,null,null,null,null,null,null,null,null,null,null,null,null,null,null,null,null,null,null,null,null,null,null,null,null,null,"OF 04",null,null,null,null,null,null,null,null,null,null,null,null,null,null,null,null,null,null,null,null,null,null,null,null,null,null,null,null,null,null,null,null,null,null,null,null,null,null,null,null,null,null,null,null,null,null,null,null,null,null,null,null,null,null,null,null,null,null,null,null,null,null,null,null,null,null,null,null,null,null,null,null,null,null,null,null,null,null,null,null,null,null,null,null,null,null,null,null,null,null,null,null,null,null,null,null,null,null,null,null,null,null,null,null,null,null,null,null,null,null,null,null,null,null,null,null,null,null,null,null,null,"OF 04"]
[]
[]
[]
[null,"© 2017 Faciltiy Dynamics Engineering - All Rights Reserved"]
[]
[null,null,null,null,null,null,null,null,null,null,null,null,null,null,null,null,null,null,null,null,null,null,null,null,null,null,null,null,null,null,null,null,null,null,null,null,null,null,null,"Symbol Definition File Location - ",null,null,null,null,null,null,null,null,null,null,null,null,null,{"$f":"HYPERLINK(\"D:\\FDE Tools\\Logic Diagrams\")","v":"D:\\FDE Tools\\Logic Diagrams"}]

{"sheet":"Building Information","index":10,"n_rows":150,"n_cols":1,"rows_kept":150,"cut":false,"hidden":false,"merged":[]}
["Back to HHW Hx Control"]
["Back to Building Occupancy Control"]
["Back to Finned Tube Radiation Zone Control"]
["Back to HHW Pump Control"]
["Click here to jump to the hot water system diagram"]
["Click here to jump to the floor plans with the finned tube radiation zones illustrated"]
["Click here to jump to an over-view image of the building"]
[]
[]
[]
[]
[]
[]
[]
[]
[]
[]
[]
[]
[]
[]
[]
[]
[]
[]
[]
[]
[]
[]
[]
[]
[]
[]
["Back to Top"]
[]
[]
[]
[]
[]
[]
[]
[]
[]
[]
[]
[]
[]
[]
[]
[]
[]
[]
[]
[]
[]
[]
[]
[]
[]
[]
[]
[]
[]
[]
[]
[]
[]
[]
[]
[]
[]
[]
[]
[]
[]
[]
[]
[]
[]
[]
[]
[]
[]
[]
[]
[]
[]
[]
[]
[]
[]
[]
[]
[]
[]
[]
[]
[]
[]
["Back to Top"]
[]
[]
[]
[]
[]
[]
[]
[]
[]
[]
[]
[]
[]
[]
[]
[]
[]
[]
[]
[]
[]
[]
[]
[]
[]
[]
[]
[]
[]
[]
[]
[]
[]
[]
[]
[]
[]
[]
[]
[]
[]
[]
[]
[]
[]
[]
["Back to Top"]
[]
[]
["© 2017 Faciltiy Dynamics Engineering - All Rights Reserved"]